Workbook

Sheet ТИТУЛ
A1: Муниципальное автономное дошкольное образовательное учреждение
A2: детский сад комбинированного вида №24 "Березка" г. Белебея
A3: муниципального района Белебеевский район Республики Башкортостан
A10: Диагностика индивидуального развития детей 4 - 5 лет
C13: 20__-20___ учебный год
B15: В соответствии с Федеральной образовательной программой дошкольного образования
B16: Приказ Министерства просвещения РФ от 25.11.2022г.
A22: Педагоги:
A24: Воспитатель:
A25: Воспитатель:
A26: Музыкальный руководитель:
B42: Планируемые образовательные результаты к пяти годам:
A44: ребенок проявляет интерес к разнообразным физическим упражнениям, действиям с физкультурными пособиями, настойчивость для достижения хорошего результата, испытывает потребность в двигательной активности;
A46: ребенок демонстрирует хорошую координацию, быстроту, силу, выносливость, гибкость, хорошее развитие крупной и мелкой моторики рук активно и с интересом выполняет основные движения, основные элементы общеразвивающих, спортивных упражнений, свободно ориентируется в пространстве, переносит освоенные упражнения в самостоятельную деятельность;
A48: ребенок интересуется факторами, обеспечивающими здоровье, стремится узнать о правилах здорового образа жизни, готов элементарно охарактеризовать свое самочувствие, привлечь внимание взрослого в случае недомогания; стремится к самостоятельному осуществлению процессов личной гигиены, их правильной организации;
A50: ребенок владеет знаниями и разными способами деятельности для решения поставленных взрослым задач, проявляет самостоятельность, умеет работать по образцу, слушать взрослого и выполнять его задания, достигать запланированного результата;
A52: ребенок демонстрирует активность в общении, решает бытовые и игровые задачи посредством общения со взрослыми и сверстниками; без напоминания взрослого здоровается и прощается, говорит «спасибо» и «пожалуйста»;
A54: ребенок выполняет самостоятельно знакомые правила общения со взрослыми, внимателен к словам и оценкам взрослого, стремится к познавательному, интеллектуальному общению со взрослыми: задает много вопросов поискового характера, стремится к положительным формам поведения, замечает ярко выраженное эмоциональное состояние сверстника или близких, по примеру воспитателя проявляет сочувствие;
A56: ребенок демонстрирует стремление к общению со сверстниками, по предложению воспитателя может договориться со сверстниками, стремится к самовыражению в деятельности, к признанию и уважению сверстников;
A58: ребенок проявляет творчество в создании игровой обстановки, в театрализации; в играх наблюдается разнообразие сюжетов; проявляет самостоятельность в выборе и использовании предметов-заместителей, активно включается в ролевой диалог со сверстниками, выдвигает игровые замыслы, в играх с правилами принимает игровую задачу;
A60: ребенок познает правила безопасного поведения и стремится их выполнять в повседневной жизни;
A62: ребенок проявляет познавательный интерес к труду взрослых, профессиям, технике; отражает эти представления в играх; способен использовать обследовательские действия для выделения качеств и свойств предметов и материалов, рассказать о предмете, его назначении и особенностях, о том, как он был создан; самостоятелен в самообслуживании; стремится к выполнению трудовых обязанностей, охотно включается в совместный труд со взрослыми или сверстниками;
A64: ребенок проявляет высокую активность и любознательность, задает много вопросов поискового характера; имеет некоторый опыт деятельности и запас представлений об окружающем мире, с помощью воспитателя активно включается в деятельность экспериментирования, в процессе совместной исследовательской деятельности активно познает и называет свойства и качества предметов, особенности объектов природы, обследовательские действия; объединяет предметы и объекты в видовые категории с указанием характерных признаков;
A66: ребенок инициативен в разговоре, речевые контакты становятся более длительными и активными, использует разные типы реплик и простые формы объяснительной речи; большинство звуков произносит правильно, пользуется средствами эмоциональной и речевой выразительности; самостоятельно пересказывает знакомые сказки, с небольшой помощью взрослого составляет описательные рассказы и загадки; проявляет словотворчество, интерес к языку, с интересом слушает литературные тексты, воспроизводит текст.

Sheet ОГЛАВЛЕНИЕ
B1: ОГЛАВЛЕНИЕ:
B2: Кликнув мышкой по соответствующему названию, вы автоматически перейдете в нужный раздел.
B3: Планируемые результаты педагогической деятельности к пяти годам.
A4: наименование вкладки | B4: ТИТУЛЬНЫЙ ЛИСТ
A5: Образовательная область "Социально-коммуникативное развитие"
A6: СК-1 | B6: НАПРАВЛЕНИЕ 1. СОЦИАЛЬНЫЕ ОТНОШЕНИЯ.
A8: СК-2 | B8: НАПРАВЛЕНИЕ 2. ФОРМИРОВАНИЕ ОСНОВ ГРАЖДАНСТВЕННОСТИ И ПАРТИОТИЗМА.
A10: СК-3 | B10: НАПРАВЛЕНИЕ 3. ТРУДОВОЕ ВОСПИТАНИЕ
A11: СК-3 | B11: НАПРАВЛЕНИЕ 4. ФОРМИРОВАНИЕ ОСНОВ БЕЗОПАСНОГО ПОВЕДЕНИЯ
A12: ИТОГ СК | B12: Обобщение результатов педагогической диагностики по направлениям ОО "Социально-коммуникативное развитие"
A13: Образовательная область "Познавательное развитие"
A14: ПР-1 | B14: НАПРАВЛЕНИЕ 1. СЕНСОРНЫЕ ЭТАЛОНЫ И ПОЗНАВАТЕЛЬНЫЕ ДЕЙСТВИЯ.
A15: ПР-2 | B15: НАПРАВЛЕНИЕ 2. МАТЕМАТИЧЕСКИЕ ПРЕДСТАВЛЕНИЯ
A16: ПР-3 | B16: НАПРАВЛЕНИЕ 3. ОКРУЖАЮЩИЙ МИР. ПРИРОДА
A17: ИТОГ -ПР | B17: Обобщение результатов педагогической диагностики по направлениям ОО "Познавательное развитие"
A18: Образовательная область "Речевое развитие"
A19: РР-1 | B19: НАПРАВЛЕНИЕ I. ФОРМИРОВАНИЕ СЛОВАРЯ
A20: РР-2 | B20: НАПРАВЛЕНИЕ 2. ГРАММАТИЧЕСКИЙ СТРОЙ РЕЧИ.
A21: РР-3 | B21: НАПРАВЛЕНИЕ 3. СВЯЗНАЯ РЕЧЬ
A22: РР-4 | B22: НАПРАВЛЕНИЕ 4. ЗВУКОВАЯ КУЛЬТУРА РЕЧИ. ПОДГОТОВКА К ОБУЧЕНИЮ ГРАМОТЕ
A23: РР-5 | B23: НАПРАВЛЕНИЕ 5. ИНТЕРЕС К ХУДОЖЕСТВЕННОЙ ЛИТЕРАТУРЕ
A24: ИТОГ РР | B24: Обобщение результатов педагогической диагностики по направлениям ОО "Речевое развитие"
A25: Образовательная область "Художественно-эстетическое развитие"
A26: ХЭ-1 | B26: НАПРАВЛЕНИЕ I. ПРИОБЩЕНИЕ К ИСКУССТВУ
A27: ХЭ-2 | B27: НАПРАВЛЕНИЕ 2. ИЗОБРАЗИТЕЛЬНАЯ ДЕЯТЕЛЬНОСТЬ
A28: ХЭ-3 | B28: НАПРАВЛЕНИЕ 3. КОНСТРУКТИВНАЯ ДЕЯТЕЛЬНОСТЬ
A29: ХЭ-4 | B29: НАПРАВЛЕНИЕ 4. МУЗЫКАЛЬНАЯ ДЕЯТЕЛЬНОСТЬ
A30: ХЭ-5 | B30: НАПРАВЛЕНИЕ 5. ТЕАТРАЛИЗОВАННАЯ И КУЛЬТУРНО-ДОСУГОВАЯ ДЕЯТЕЛЬНОСТЬ
A31: ИТОГ ХЭ | B31: Обобщение результатов педагогической диагностики по направлениям ОО "Художественно-эстетическое развитие"
A32: Образовательная область "Физическое развитие"
A33: ФР-1 | B33: НАПРАВЛЕНИЕ I. ОСНОВНАЯ ГИМНАСТИКА. ПОДВИЖНЫЕ И СПОРТИВНЫЕ ИГРЫ. СПОРТИВНЫЕ УПРАЖНЕНИЯ
A34: ФР-2 | B34: НАПРАВЛЕНИЕ 2. ФОРМИРОВАНИЕ ОСНОВ ЗДОРОВОГО ОБРАЗА ЖИЗНИ. АКТИВНЫЙ ОТДЫХ
A35: ИТОГ ФР | B35: Обобщение результатов педагогической диагностики по направлениям ОО «Физическое развитие»
A37: ОБЩИЙ ИТОГ | B37: Обобщение результатов педагогической диагностики по всем образовательным областям

Sheet СК-1
B1: Образовательная область «Социально-коммуникативное развитие»
N2: ОГЛАВЛЕНИЕ
B3: НАПРАВЛЕНИЕ 1. СОЦИАЛЬНЫЕ ОТНОШЕНИЯ
B5: №п/п | C5: ФИ ребенка | D5: Старается соблюдать правила поведения в общественных местах, в общении со взрослыми и сверстниками, к природе | F5: Понимает социальную оценку поступков сверстников или героев иллюстраций, литературных произведений, эмоционально откликается | H5: Понимает значение слов обозначающих эмоциональное состояние, этические качества, эстетические характеристики | J5: Умеет договариваться, поддерживать совместные дела в небольших группах (3-4 чел) | L5: Проявляет вежливость, уважение к старшим. Демонстрирует различные формы приветствия, прощания, выражения благодарности и просьбы | N5: Уважительно относится ко взрослым (родителям (законным представителям), педагогам и окружающим людям) | P5: среднее значение
D7: н.г. | E7: к.г. | F7: н.г. | G7: к.г. | H7: н.г. | I7: к.г. | J7: н.г. | K7: к.г. | L7: н.г. | M7: к.г. | N7: н.г. | O7: к.г. | P7: н.г. | Q7: к.г.
B8: 1 | C8: Иванов | D8: 2 | E8: 3 | F8: 2 | G8: 3 | H8: 2 | I8: 3 | J8: 2 | K8: 3 | L8: 2 | M8: 3 | N8: 2 | O8: 3 | P8: =(D8+F8+H8+J8+L8+N8)/6 -> 2.00 | Q8: =(E8+G8+I8+K8+M8+O8)/6 -> 3.00
B9: 2 | C9: Петров | P9: =(D9+F9+H9+J9+L9+N9)/6 -> 0.00 | Q9: =(E9+G9+I9+K9+M9+O9)/6 -> 0.00
B10: 3 | C10: Сидоров | P10: 0.00 | Q10: 0.00
B11: 4 | P11: 0.00 | Q11: 0.00
B12: 5 | P12: 0.00 | Q12: 0.00
B13: 6 | P13: 0.00 | Q13: 0.00
B14: 7 | P14: 0.00 | Q14: 0.00
B15: 8 | P15: 0.00 | Q15: 0.00
B16: 9 | P16: 0.00 | Q16: 0.00
B17: 10 | P17: 0.00 | Q17: 0.00
B18: 11 | P18: 0.00 | Q18: 0.00
B19: 12 | P19: 0.00 | Q19: 0.00
B20: 13 | P20: 0.00 | Q20: 0.00
B21: 14 | P21: 0.00 | Q21: 0.00
B22: 15 | P22: 0.00 | Q22: 0.00
B23: 16 | P23: 0.00 | Q23: 0.00
B24: 17 | P24: 0.00 | Q24: 0.00
B25: 18 | P25: 0.00 | Q25: 0.00
B26: 19 | P26: 0.00 | Q26: 0.00
B27: 20 | P27: 0.00 | Q27: 0.00
B28: 21 | P28: 0.00 | Q28: 0.00
B29: 22 | P29: 0.00 | Q29: 0.00
B30: 23 | P30: 0.00 | Q30: 0.00
B31: 24 | P31: 0.00 | Q31: 0.00
C32: среднее значение: | D32: =(D8+D9+D10+D11+D12+D13+D14+D15+D16+D17+D18+D19+D20+D21+D22+D23+D24+D25+D26+D27+D28+D29+D30+D31)/COUNTA($C$8:$C$31) -> 0.67 | E32: =(E8+E9+E10+E11+E12+E13+E14+E15+E16+E17+E18+E19+E20+E21+E22+E23+E24+E25+E26+E27+E28+E29+E30+E31)/COUNTA($C$8:$C$31) -> 1.00 | F32: 0.67 | G32: 1.00 | H32: 0.67 | I32: 1.00 | J32: 0.67 | K32: 1.00 | L32: 0.67 | M32: 1.00 | N32: 0.67 | O32: 1.00 | P32: 0.67 | Q32: 1.00
C34: начало года
D35: всего | E35: норма | F35: ниже нормы | G35: низкий
C37: количество детей | D37: =COUNTA($C$8:$C$31) -> 3 | E37: =COUNTIF(P8:P31,">=3,8") -> 0 | F37: =COUNTIFS(P8:P31,"<3,7",P8:P31,">=2,3") -> 0 | G37: =COUNTIFS(P8:P31,"<2,2",P8:P31,">0") -> 1
C38: % | D38: 100 | E38: =E37*D38/D37 -> 0 | F38: =F37*D38/D37 -> 0.0 | G38: =G37*D38/D37 -> 33.3
C40: конец года
D41: всего | E41: норма | F41: ниже нормы | G41: низкий
C43: количество детей | D43: =COUNTA($C$8:$C$31) -> 3 | E43: =COUNTIF(Q8:Q31,">=3,8") -> 0 | F43: =COUNTIFS(Q8:Q31,"<3,7",Q8:Q31,">=2,3") -> 1 | G43: =COUNTIFS(Q8:Q31,"<2,2",Q8:Q31,">0") -> 0
C44: % | D44: 100 | E44: =E43*D44/D43 -> 0.0 | F44: =F43*D44/D43 -> 33.3 | G44: =G43*D44/D43 -> 0.0

Sheet СК-2
B1: НАПРАВЛЕНИЕ 2. ФОРМИРОВАНИЕ ОСНОВ ГРАЖДАНСТВЕННОСТИ И ПАРИОТИЗМА. | K1: ОГЛАВЛЕНИЕ
B3: №п/п | C3: ФИ ребенка | D3: Знает и называет | H3: Проявляет уважительное отношение к государственным символам страны (герб, флаг) | J3: Знает значение государственных праздников: День защитника Отечества, День Победы | L3: среднее значение
D4: основные достопримечательности города | F4: название улицы, на которой он живет
D5: н.г. | E5: к.г. | F5: н.г. | G5: к.г. | H5: н.г. | I5: к.г. | J5: н.г. | K5: к.г. | L5: н.г. | M5: к.г.
B6: 1 | C6: Иванов | D6: 2 | E6: 3 | F6: 2 | G6: 3 | H6: 3 | I6: 4 | J6: 3 | K6: 4 | L6: =(D6+F6+H6+J6)/4 -> 2.50 | M6: =(E6+G6+I6+K6)/4 -> 3.50
B7: 2 | C7: Петров | L7: =(D7+F7+H7+J7)/4 -> 0.00 | M7: 0.00
B8: 3 | C8: Сидоров | L8: 0.00 | M8: 0.00
B9: 4 | L9: 0.00 | M9: 0.00
B10: 5 | L10: 0.00 | M10: 0.00
B11: 6 | L11: 0.00 | M11: 0.00
B12: 7 | L12: 0.00 | M12: 0.00
B13: 8 | L13: 0.00 | M13: 0.00
B14: 9 | L14: 0.00 | M14: 0.00
B15: 10 | L15: 0.00 | M15: 0.00
B16: 11 | L16: 0.00 | M16: 0.00
B17: 12 | L17: 0.00 | M17: 0.00
B18: 13 | L18: 0.00 | M18: 0.00
B19: 14 | L19: 0.00 | M19: 0.00
B20: 15 | L20: 0.00 | M20: 0.00
B21: 16 | L21: 0.00 | M21: 0.00
B22: 17 | L22: 0.00 | M22: 0.00
B23: 18 | L23: 0.00 | M23: 0.00
B24: 19 | L24: 0.00 | M24: 0.00
B25: 20 | L25: 0.00 | M25: 0.00
B26: 21 | L26: 0.00 | M26: 0.00
B27: 22 | L27: 0.00 | M27: 0.00
B28: 23 | L28: 0.00 | M28: 0.00
B29: 24 | L29: 0.00 | M29: 0.00
C30: среднее значение: | D30: =(D6+D7+D8+D9+D10+D11+D12+D13+D14+D15+D16+D17+D18+D19+D20+D21+D22+D23+D24+D25+D26+D27+D28+D29)/COUNTA($C$6:$C$29) -> 0.67 | E30: =(E6+E7+E8+E9+E10+E11+E12+E13+E14+E15+E16+E17+E18+E19+E20+E21+E22+E23+E24+E25+E26+E27+E28+E29)/COUNTA($C$6:$C$29) -> 1.00 | F30: 0.67 | G30: 1.00 | H30: 1.00 | I30: 1.33 | J30: 1.00 | K30: 1.33 | L30: 0.83 | M30: 1.17
C33: начало года
D34: всего | E34: норма | F34: ниже нормы | G34: низкий
C36: количество детей | D36: =COUNTA($C$6:$C$29) -> 3 | E36: =COUNTIF(L6:L29,">=3,8") -> 0 | F36: =COUNTIFS(L6:L29,"<3,7",L6:L29,">=2,3") -> 1 | G36: =COUNTIFS(L6:L29,"<2,2",L6:L29,">0") -> 0
C37: % | D37: 100 | E37: =E36*D37/D36 -> 0 | F37: =F36*D37/D36 -> 33.3 | G37: =G36*D37/D36 -> 0.0
C39: конец года
D40: всего | E40: норма | F40: ниже нормы | G40: низкий
C42: количество детей | D42: =COUNTA($C$6:$C$29) -> 3 | E42: =COUNTIF(M6:M29,">=3,8") -> 0 | F42: =COUNTIFS(M6:M29,"<3,7",M6:M29,">=2,3") -> 1 | G42: =COUNTIFS(M6:M29,"<2,2",M6:M29,">0") -> 0
C43: % | D43: 100 | E43: =E42*D43/D42 -> 0.0 | F43: =F42*D43/D42 -> 33.3 | G43: =G42*D43/D42 -> 0.0

Sheet СК-3
B1: НАПРАВЛЕНИЕ 3. ТРУДОВОЕ ВОСПИТАНИЕ
U2: ОГЛАВЛЕНИЕ
B3: №п/п | C3: ФИ ребенка | D3: Имеет представления о мужских и женских профессиях. | F3: Готовит к занятиям рабочее место, убирает материалы по окончании работы | H3: Знает содержание и структуру хозяйственно-бытового труда взрослых | J3: Знает основные характеристики материалов (прочность, мягкость, промокаемость) | L3: Знает назначение бытовой техники | N3: Оказывает взаимопомощь | P3: Бережно относится к вещам | R3: среднее значение
D5: н.г. | E5: к.г. | F5: н.г. | G5: к.г. | H5: н.г. | I5: к.г. | J5: н.г. | K5: к.г. | L5: н.г. | M5: к.г. | N5: н.г. | O5: к.г. | P5: н.г. | Q5: к.г. | R5: н.г. | S5: к.г.
B6: 1 | C6: Иванов | D6: 3 | E6: 4 | F6: 3 | G6: 4 | H6: 2 | I6: 3 | J6: 3 | K6: 4 | L6: 3 | M6: 4 | N6: 3 | O6: 4 | P6: 4 | Q6: 5 | R6: =(D6+F6+H6+J6+L6+N6+P6)/7 -> 3.00 | S6: =(E6+G6+I6+K6+M6+O6+Q6)/7 -> 4.00
B7: 2 | C7: Петров | R7: =(D7+F7+H7+J7+L7+N7+P7)/7 -> 0.00 | S7: 0.00
B8: 3 | C8: Сидоров | R8: 0.00 | S8: 0.00
B9: 4 | R9: 0.00 | S9: 0.00
B10: 5 | R10: 0.00 | S10: 0.00
B11: 6 | R11: 0.00 | S11: 0.00
B12: 7 | R12: 0.00 | S12: 0.00
B13: 8 | R13: 0.00 | S13: 0.00
B14: 9 | R14: 0.00 | S14: 0.00
B15: 10 | R15: 0.00 | S15: 0.00
B16: 11 | R16: 0.00 | S16: 0.00
B17: 12 | R17: 0.00 | S17: 0.00
B18: 13 | R18: 0.00 | S18: 0.00
B19: 14 | R19: 0.00 | S19: 0.00
B20: 15 | R20: 0.00 | S20: 0.00
B21: 16 | R21: 0.00 | S21: 0.00
B22: 17 | R22: 0.00 | S22: 0.00
B23: 18 | R23: 0.00 | S23: 0.00
B24: 19 | R24: 0.00 | S24: 0.00
B25: 20 | R25: 0.00 | S25: 0.00
B26: 21 | R26: 0.00 | S26: 0.00
B27: 22 | R27: 0.00 | S27: 0.00
B28: 23 | R28: 0.00 | S28: 0.00
B29: 24 | R29: 0.00 | S29: 0.00
C30: среднее значение: | D30: =(D6+D7+D8+D9+D10+D11+D12+D13+D14+D15+D16+D17+D18+D19+D20+D21+D22+D23+D24+D25+D26+D27+D28+D29)/COUNTA($C$8:$C$31) -> 1.50 | E30: =(E6+E7+E8+E9+E10+E11+E12+E13+E14+E15+E16+E17+E18+E19+E20+E21+E22+E23+E24+E25+E26+E27+E28+E29)/COUNTA($C$8:$C$31) -> 2.00 | F30: 1.50 | G30: 2.00 | H30: 1.00 | I30: 1.50 | J30: 1.50 | K30: 2.00 | L30: 1.50 | M30: 2.00 | N30: 1.50 | O30: 2.00 | P30: 2.00 | Q30: 2.50 | R30: 1.50 | S30: 2.00
C32: начало года
D33: всего | E33: норма | F33: ниже нормы | G33: низкий
C34: количество детей | D34: =COUNTA($C$6:$C$29) -> 3 | E34: =COUNTIF(R6:R29,">=3,8") -> 0 | F34: =COUNTIFS(R6:R29,"<3,7",R6:R29,">=2,3") -> 1 | G34: =COUNTIFS(R6:R29,"<2,2",R6:R29,">0") -> 0
C35: % | D35: 100 | E35: =E34*D35/D34 -> 0 | F35: =F34*D35/D34 -> 33.3 | G35: =G34*D35/D34 -> 0.0
C38: конец года
D39: всего | E39: норма | F39: ниже нормы | G39: низкий
C40: количество детей | D40: =COUNTA($C$6:$C$29) -> 3 | E40: =COUNTIF(S6:S29,">=3,8") -> 1 | F40: =COUNTIFS(S6:S29,"<3,7",S6:S29,">=2,3") -> 0 | G40: =COUNTIFS(S6:S29,"<2,2",S6:S29,">0") -> 0
C41: % | D41: 100 | E41: =E40*D41/D40 -> 33.3 | F41: =F40*D41/D40 -> 0.0 | G41: =G40*D41/D40 -> 0.0
B45: НАПРАВЛЕНИЕ 4. ФОРМИРОВАНИЕ ОСНОВ БЕЗОПАСНОСНОГО ПОВЕДЕНИЯ
B47: №п/п | C47: ФИ ребенка | D47: Может опознать специальный транспорт | F47: Знает и называет некоторые дорожные знаки («Дети», «Пешеходный переход») | H47: Самостоятелен в самообслуживании | J47: Знает правила безопасного поведения и стремится их выполнять | R47: среднее значение
J48: в быту | L48: на улице | N48: в природе | P48: с незнакомыми людьми
D49: н.г. | E49: к.г. | F49: н.г. | G49: к.г. | H49: н.г. | I49: к.г. | J49: н.г. | K49: к.г. | L49: н.г. | M49: к.г. | N49: н.г. | O49: к.г. | P49: н.г. | Q49: к.г. | R49: н.г. | S49: к.г.
B50: 1 | C50: Иванов | D50: 2 | E50: 3 | F50: 2 | G50: 3 | H50: 3 | I50: 4 | J50: 3 | K50: 4 | L50: 4 | M50: 5 | N50: 3 | O50: 4 | P50: 4 | Q50: 5 | R50: =(D50+F50+H50+J50+L50+N50+P50)/7 -> 3.00 | S50: =(E50+G50+I50+K50+M50+O50+Q50)/7 -> 4.00
B51: 2 | C51: Петров | R51: 0.00 | S51: 0.00
B52: 3 | C52: Сидоров | R52: 0.00 | S52: 0.00
B53: 4 | R53: 0.00 | S53: 0.00
B54: 5 | R54: 0.00 | S54: 0.00
B55: 6 | R55: 0.00 | S55: 0.00
B56: 7 | R56: 0.00 | S56: 0.00
B57: 8 | R57: 0.00 | S57: 0.00
B58: 9 | R58: 0.00 | S58: 0.00
B59: 10 | R59: 0.00 | S59: 0.00
B60: 11 | R60: 0.00 | S60: 0.00
B61: 12 | R61: 0.00 | S61: 0.00
B62: 13 | R62: 0.00 | S62: 0.00
B63: 14 | R63: 0.00 | S63: 0.00
B64: 15 | R64: 0.00 | S64: 0.00
B65: 16 | R65: 0.00 | S65: 0.00
B66: 17 | R66: 0.00 | S66: 0.00
B67: 18 | R67: 0.00 | S67: 0.00
B68: 19 | R68: 0.00 | S68: 0.00
B69: 20 | R69: 0.00 | S69: 0.00
B70: 21 | R70: 0.00 | S70: 0.00
B71: 22 | R71: 0.00 | S71: 0.00
B72: 23 | R72: 0.00 | S72: 0.00
B73: 24 | R73: 0.00 | S73: 0.00
C74: среднее значение: | D74: =(D50+D51+D52+D53+D54+D55+D56+D57+D58+D59+D60+D61+D62+D63+D64+D65+D66+D67+D68+D69+D70+D71+D72+D73)/24 -> 0.08 | E74: 0.13 | F74: 0.08 | G74: 0.13 | H74: 0.13 | I74: 0.17 | J74: 0.13 | K74: 0.17 | L74: 0.17 | M74: 0.21 | N74: 0.13 | O74: 0.17 | P74: 0.17 | Q74: 0.21 | R74: 0.13 | S74: 0.17
C76: начало года
D77: всего | E77: норма | F77: ниже нормы | G77: низкий
C78: количество детей | D78: =COUNTA(C50:C73) -> 3 | E78: =COUNTIF(R50:R73,">=3,8") -> 0 | F78: =COUNTIFS(R50:R73,"<3,7",R50:R73,">=2,3") -> 1 | G78: =COUNTIFS(R50:R73,"<2,2",R50:R73,">0") -> 0
C79: % | D79: 100 | E79: =E78*D79/D78 -> 0 | F79: =F78*D79/D78 -> 33.3 | G79: =G78*D79/D78 -> 0.0
C81: конец года
D82: всего | E82: норма | F82: ниже нормы | G82: низкий
C83: количество детей | D83: =COUNTA(C49:C72) -> 3 | E83: =COUNTIF(S50:S73,">=3,8") -> 1 | F83: =COUNTIFS(S50:S73,"<3,7",S50:S73,">=2,3") -> 0 | G83: =COUNTIFS(S50:S73,"<2,2",S50:S73,">0") -> 0
C84: % | D84: 100 | E84: =E83*D84/D83 -> 33.3 | F84: =F83*D84/D83 -> 0.0 | G84: =G83*D84/D83 -> 0.0

Sheet ИТОГ СК
A1: Обобщение результатов педагогической диагностики по направлениям ОО «Социально-коммуникативное развитие»
B3: ОГЛАВЛЕНИЕ | C3: Формирование общепринятых норм поведения | D3: Формирование основ гражданственности и патриотизма | E3: Трудовое воспитание | F3: Формирование основ безопасного поведения | G3: Средний балл/уровень (итоговый)
C4: 1 | D4: 2 | E4: 3 | F4: 4 | G4: ср.ур.
B5: начало | C5: ='СК-1'!P32 -> 0.67 | D5: ='СК-2'!L30 -> 0.83 | E5: ='СК-3'!R30 -> 1.50 | F5: ='СК-3'!R74 -> 0.13 | G5: =(C5+D5+E5+F5)/4 -> 0.78
B6: конец | C6: ='СК-1'!Q32 -> 1.00 | D6: ='СК-2'!M30 -> 1.17 | E6: ='СК-3'!S30 -> 2.00 | F6: ='СК-3'!S74 -> 0.17 | G6: =(C6+D6+E6+F6)/4 -> 1.08
A36: ВЫВОДЫ:
A37: Начало учебного года:
A45: Конец учебного года:

Sheet ПР-1
A1: Образовательная область «Познавательное развитие»
A2: НАПРАВЛЕНИЕ 1. СЕНСОРНЫЕ ЭТАЛОНЫ И ПОЗНАВАТЕЛЬНЫЕ ДЕЙСТВИЯ. | N2: ОГЛАВЛЕНИЕ
A4: №п/п | B4: ФИ ребенка | C4: Различает и называет цвета (красный, синий, зеленый, желтый, белый, черный) | E4: Называет оттенки цветов (розовый, голубой, серый). В конце года - коричневый, оранжевый, светло-зеленый | G4: Различает и называет форму окружающих предметов, используя сенсорные эталоны геометрических фигур (круг, квадрат, овал, прямоугольник, треугольник) | I4: Умеет находить отличия и сходство между предметами по 2-3 признакам (сравнение, группировка, классификация, сериация) | K4: Называет свойства и качества предметов, особенности объектов природы, обследовательские действия | M4: Может объединять предметы и объекты в видовые категории с указанием характерных признаков (животные, одежда, обувь, мебель, посуда, деревья) | O4: среднее значение
C6: н.г. | D6: к.г. | E6: н.г. | F6: к.г. | G6: н.г. | H6: к.г. | I6: н.г. | J6: к.г. | K6: н.г. | L6: к.г. | M6: н.г. | N6: к.г. | O6: н.г. | P6: к.г.
A7: 1 | B7: Иванов | C7: 2 | D7: 3 | E7: 2 | F7: 3 | G7: 4 | H7: 5 | I7: 3 | J7: 4 | K7: 3 | L7: 4 | M7: 3 | N7: 4 | O7: =(C7+E7+G7+I7+K7+M7)/6 -> 2.83 | P7: =(D7+F7+H7+J7+L7+N7)/6 -> 3.83
A8: 2 | B8: Петров | O8: =(C8+E8+G8+I8+K8+M8)/6 -> 0.00 | P8: =(D8+F8+H8+J8+L8+N8)/6 -> 0.00
A9: 3 | B9: Сидоров | O9: 0.00 | P9: 0.00
A10: 4 | O10: 0.00 | P10: 0.00
A11: 5 | O11: 0.00 | P11: 0.00
A12: 6 | O12: 0.00 | P12: 0.00
A13: 7 | O13: 0.00 | P13: 0.00
A14: 8 | O14: 0.00 | P14: 0.00
A15: 9 | O15: 0.00 | P15: 0.00
A16: 10 | O16: 0.00 | P16: 0.00
A17: 11 | O17: 0.00 | P17: 0.00
A18: 12 | O18: 0.00 | P18: 0.00
A19: 13 | O19: 0.00 | P19: 0.00
A20: 14 | O20: 0.00 | P20: 0.00
A21: 15 | O21: 0.00 | P21: 0.00
A22: 16 | O22: 0.00 | P22: 0.00
A23: 17 | O23: 0.00 | P23: 0.00
A24: 18 | O24: 0.00 | P24: 0.00
A25: 19 | O25: 0.00 | P25: 0.00
A26: 20 | O26: 0.00 | P26: 0.00
A27: 21 | O27: 0.00 | P27: 0.00
A28: 22 | O28: 0.00 | P28: 0.00
A29: 23 | O29: 0.00 | P29: 0.00
A30: 24 | O30: 0.00 | P30: 0.00
B31: среднее значение: | C31: =(C7+C8+C9+C10+C11+C12+C13+C14+C15+C16+C17+C18+C19+C20+C21+C22+C23+C24+C25+C26+C27+C28+C29+C30)/COUNTA($B$7:$B$30) -> 0.67 | D31: =(D7+D8+D9+D10+D11+D12+D13+D14+D15+D16+D17+D18+D19+D20+D21+D22+D23+D24+D25+D26+D27+D28+D29+D30)/COUNTA($B$7:$B$30) -> 1.00 | E31: 0.67 | F31: 1.00 | G31: 1.33 | H31: 1.67 | I31: 1.00 | J31: 1.33 | K31: 1.00 | L31: 1.33 | M31: 1.00 | N31: 1.33 | O31: 0.94 | P31: 1.28
B33: начало года
C34: всего | D34: норма | E34: ниже нормы | F34: низкий
B35: количество детей | C35: =COUNTA($B$7:$B$30) -> 3 | D35: =COUNTIF(O7:O30,">=3,8") -> 0 | E35: =COUNTIFS(O7:O30,"<3,7",O7:O30,">=2,3") -> 1 | F35: =COUNTIFS(O7:O30,"<2,2",O7:O30,">0") -> 0
B36: % | C36: 100 | D36: =D35*C36/C35 -> 0 | E36: =E35*C36/C35 -> 33.3 | F36: =F35*C36/C35 -> 0.0
B38: конец года
C39: всего | D39: норма | E39: ниже нормы | F39: низкий
B40: количество детей | C40: =COUNTA(B7:B30) -> 3 | D40: =COUNTIF(P7:P30,">=3,8") -> 1 | E40: =COUNTIFS(P7:P30,"<3,7",P7:P30,">=2,3") -> 0 | F40: =COUNTIFS(P7:P30,"<2,2",P7:P30,">0") -> 0
B41: % | C41: 100 | D41: =D40*C41/C40 -> 33.3 | E41: =E40*C41/C40 -> 0.0 | F41: =F40*C41/C40 -> 0.0

Sheet ПР-2
A1: НАПРАВЛЕНИЕ 2. МАТЕМАТИЧЕСКИЕ ПРЕДСТАВЛЕНИЯ. | U1: ОГЛАВЛЕНИЕ
A3: №п/п | B3: ФИ ребенка | C3: Ориентируется в пространстве (на себе, на другом человеке, от предмета, на плоскости) | E3: Различает круг, квадрат, треугольник, прямоугольник | G3: Понимает смысл слов «утро», «вечер», «день», «ночь», определяет части суток, называет времена года, их признаки, последовательность | I3: Владеет навыком счета в прямом порядке до 5 | M3: Пересчитывает предметы и отсчитывает их по образцу и названному числу | O3: Умеет группировать предметы по цвету, размеру, форме, назначению | Q3: Различает части суток, знает их последовательность, понимает временную последовательность - "вчера, сегодня, завтра" | S3: Умеет сравнивать предметы по форме и величине | U3: Умеет определять пространственные отношения - вперед, назад, вниз, налево, направо | W3: среднее значение
I4: количественного счета | K4: порядкового счета
C5: н.г. | D5: к.г. | E5: н.г. | F5: к.г. | G5: н.г. | H5: к.г. | I5: н.г. | J5: к.г. | K5: н.г. | L5: к.г. | M5: н.г. | N5: к.г. | O5: н.г. | P5: к.г. | Q5: н.г. | R5: к.г. | S5: н.г. | T5: к.г. | U5: н.г. | V5: к.г. | W5: н.г. | X5: к.г.
A6: 1 | B6: Иванов | W6: =(C6+E6+G6+I6+K6+M6+O6+Q6+S6+U6)/10 -> 0.00 | X6: =(D6+F6+H6+J6+L6+N6+P6+R6+T6+V6)/10 -> 0.00
A7: 2 | B7: Петров | W7: =(C7+E7+G7+I7+K7+M7+O7+Q7+S7+U7)/10 -> 0.00 | X7: =(D7+F7+H7+J7+L7+N7+P7+R7+T7+V7)/10 -> 0.00
A8: 3 | B8: Сидоров | W8: 0.00 | X8: 0.00
A9: 4 | W9: 0.00 | X9: 0.00
A10: 5 | W10: 0.00 | X10: 0.00
A11: 6 | W11: 0.00 | X11: 0.00
A12: 7 | W12: 0.00 | X12: 0.00
A13: 8 | W13: 0.00 | X13: 0.00
A14: 9 | W14: 0.00 | X14: 0.00
A15: 10 | W15: 0.00 | X15: 0.00
A16: 11 | W16: 0.00 | X16: 0.00
A17: 12 | W17: 0.00 | X17: 0.00
A18: 13 | W18: 0.00 | X18: 0.00
A19: 14 | W19: 0.00 | X19: 0.00
A20: 15 | W20: 0.00 | X20: 0.00
A21: 16 | W21: 0.00 | X21: 0.00
A22: 17 | W22: 0.00 | X22: 0.00
A23: 18 | W23: 0.00 | X23: 0.00
A24: 19 | W24: 0.00 | X24: 0.00
A25: 20 | W25: 0.00 | X25: 0.00
A26: 21 | W26: 0.00 | X26: 0.00
A27: 22 | W27: 0.00 | X27: 0.00
A28: 23 | W28: 0.00 | X28: 0.00
A29: 24 | W29: 0.00 | X29: 0.00
B30: среднее значение: | C30: =(C6+C7+C8+C9+C10+C11+C12+C13+C14+C15+C16+C17+C18+C19+C20+C21+C22+C23+C24+C25+C26+C27+C28+C29)/COUNTA($B$6:$B$29) -> 0.00 | D30: =(D6+D7+D8+D9+D10+D11+D12+D13+D14+D15+D16+D17+D18+D19+D20+D21+D22+D23+D24+D25+D26+D27+D28+D29)/COUNTA($B$6:$B$29) -> 0.00 | E30: 0.00 | F30: 0.00 | G30: 0.00 | H30: 0.00 | I30: 0.00 | J30: 0.00 | K30: 0.00 | L30: 0.00 | M30: 0.00 | N30: 0.00 | O30: 0.00 | P30: 0.00 | Q30: 0.00 | R30: 0.00 | S30: 0.00 | T30: 0.00 | U30: 0.00 | V30: 0.00 | W30: 0.00 | X30: 0.00
B32: начало года
C33: всего | D33: норма | E33: ниже нормы | F33: низкий
B34: количество детей | C34: =COUNTA($B$6:$B$29) -> 3 | D34: =COUNTIF(W6:W29,">=3,8") -> 0 | E34: =COUNTIFS(W6:W29,"<3,7",W6:W29,">=2,3") -> 0 | F34: =COUNTIFS(W6:W29,"<2,2",W6:W29,">0") -> 0
B35: % | C35: 100 | D35: =D34*C35/C34 -> 0 | E35: =E34*C35/C34 -> 0.0 | F35: =F34*C35/C34 -> 0.0
B37: конец года
C38: всего | D38: норма | E38: ниже нормы | F38: низкий
B39: количество детей | C39: =COUNTA(B6:B29) -> 3 | D39: =COUNTIF(X6:X29,">=3,8") -> 0 | E39: =COUNTIFS(X6:X29,"<3,7",X6:X29,">=2,3") -> 0 | F39: =COUNTIFS(X6:X29,"<2,2",X6:X29,">0") -> 0
B40: % | C40: 100 | D40: =D39*C40/C39 -> 0.0 | E40: =E39*C40/C39 -> 0.0 | F40: =F39*C40/C39 -> 0.0

Sheet ПР-3
A1: НАПРАВЛЕНИЕ 3. ОКРУЖАЮЩИЙ МИР. ПРИРОДА. | Q1: ОГЛАВЛЕНИЕ
A3: №п/п | B3: ФИ ребенка | C3: Называет диких и домашних животных, одежду, обувь, мебель, посуду, деревья | E3: Знает о значении солнца, воздуха, воды для человека | G3: Ориентируется в пространстве (на себе, на другом человеке, от предмета, на плоскости) | I3: Стремится самостоятельно ухаживать за растениямии животными, беречь их | K3: Знает название своей республики (области, края) в которой проживает | M3: Сравнивает объекты живой природы на основе признаков (дикие-домашние, хищные-травоядные, перелетные-зимующие, деревья-кустарники, травы-цветы,растения, овощи-фрукты, грибы-ягоды и т.д.) | O3: Знает и называет объекты и свойства неживой природы (камни, песок, глина, вода) | Q3: Знает явления природы в разные сезоны (листопад, ледоход, голодед, град, ветер) | S3: среднее значение
C5: н.г. | D5: к.г. | E5: н.г. | F5: к.г. | G5: н.г. | H5: к.г. | I5: н.г. | J5: к.г. | K5: н.г. | L5: к.г. | M5: н.г. | N5: к.г. | O5: н.г. | P5: к.г. | Q5: н.г. | R5: к.г. | S5: н.г. | T5: к.г.
A6: 1 | B6: Иванов | S6: =(C6+E6+G6+I6+K6+M6+O6+Q6)/8 -> 0.00 | T6: =(D6+F6+H6+J6+L6+N6+P6+R6)/8 -> 0.00
A7: 2 | B7: Петров | S7: =(C7+E7+G7+I7+K7+M7+O7+Q7)/8 -> 0.00 | T7: =(D7+F7+H7+J7+L7+N7+P7+R7)/8 -> 0.00
A8: 3 | B8: Сидоров | S8: 0.00 | T8: 0.00
A9: 4 | S9: 0.00 | T9: 0.00
A10: 5 | S10: 0.00 | T10: 0.00
A11: 6 | S11: 0.00 | T11: 0.00
A12: 7 | S12: 0.00 | T12: 0.00
A13: 8 | S13: 0.00 | T13: 0.00
A14: 9 | S14: 0.00 | T14: 0.00
A15: 10 | S15: 0.00 | T15: 0.00
A16: 11 | S16: 0.00 | T16: 0.00
A17: 12 | S17: 0.00 | T17: 0.00
A18: 13 | S18: 0.00 | T18: 0.00
A19: 14 | S19: 0.00 | T19: 0.00
A20: 15 | S20: 0.00 | T20: 0.00
A21: 16 | S21: 0.00 | T21: 0.00
A22: 17 | S22: 0.00 | T22: 0.00
A23: 18 | S23: 0.00 | T23: 0.00
A24: 19 | S24: 0.00 | T24: 0.00
A25: 20 | S25: 0.00 | T25: 0.00
A26: 21 | S26: 0.00 | T26: 0.00
A27: 22 | S27: 0.00 | T27: 0.00
A28: 23 | S28: 0.00 | T28: 0.00
A29: 24 | S29: 0.00 | T29: 0.00
B30: среднее значение: | C30: =(C6+C7+C8+C9+C10+C11+C12+C13+C14+C15+C16+C17+C18+C19+C20+C21+C22+C23+C24+C25+C26+C27+C28+C29)/COUNTA($B$6:$B$29) -> 0.00 | D30: =(D6+D7+D8+D9+D10+D11+D12+D13+D14+D15+D16+D17+D18+D19+D20+D21+D22+D23+D24+D25+D26+D27+D28+D29)/COUNTA($B$6:$B$29) -> 0.00 | E30: 0.00 | F30: 0.00 | G30: 0.00 | H30: 0.00 | I30: 0.00 | J30: 0.00 | K30: 0.00 | L30: 0.00 | M30: 0.00 | N30: 0.00 | O30: 0.00 | P30: 0.00 | Q30: 0.00 | R30: 0.00 | S30: 0.00 | T30: 0.00
B32: начало года
C33: всего | D33: норма | E33: ниже нормы | F33: низкий
B34: количество детей | C34: =COUNTA($B$6:$B$29) -> 3 | D34: =COUNTIF(S6:S29,">=3,8") -> 0 | E34: =COUNTIFS(S6:S29,"<3,7",S6:S29,">=2,3") -> 0 | F34: =COUNTIFS(S6:S29,"<2,2",S6:S29,">0") -> 0
B35: % | C35: 100 | D35: =D34*C35/C34 -> 0 | E35: =E34*C35/C34 -> 0.0 | F35: =F34*C35/C34 -> 0.0
B37: конец года
C38: всего | D38: норма | E38: ниже нормы | F38: низкий
B39: количество детей | C39: =COUNTA(B6:B29) -> 3 | D39: =COUNTIF(T6:T29,">=3,8") -> 0 | E39: =COUNTIFS(T6:T29,"<3,7",T6:T29,">=2,3") -> 0 | F39: =COUNTIFS(T6:T29,"<2,2",T6:T29,">0") -> 0
B40: % | C40: 100 | D40: =D39*C40/C39 -> 0.0 | E40: =E39*C40/C39 -> 0.0 | F40: =F39*C40/C39 -> 0.0

Sheet ИТОГ ПР
A1: Обобщение результатов педагогической диагностики по направлениям ОО «Познавательное развитие»
B3: ОГЛАВЛЕНИЕ | C3: Сенсорные эталоны и познавательные действия | D3: Математические представления | E3: Окружающий мир. Природа | F3: Средний уровень развития
C4: 1 | D4: 2 | E4: 3 | F4: ср.ур.
B5: начало | C5: ='ПР-1'!O31 -> 0.94 | D5: ='ПР-2'!W30 -> 0.00 | E5: ='ПР-3'!S30 -> 0.00 | F5: =(C5+D5+E5)/3 -> 0.31
B6: конец | C6: ='ПР-1'!P31 -> 1.28 | D6: ='ПР-2'!X30 -> 0.00 | E6: ='ПР-3'!T30 -> 0.00 | F6: =(C6+D6+E6)/3 -> 0.43
A27: ВЫВОДЫ:
A28: Начало учебного года:
A36: Конец учебного года:

Sheet РР-1
B1: Образовательная область «Речевое развитие»
B2: НАПРАВЛЕНИЕ I. ФОРМИРОВАНИЕ СЛОВАРЯ | X2: ОГЛАВЛЕНИЕ
B4: №п/п | C4: ФИ ребенка | D4: Правильно использует в речи существительные, обозначающие названия частей и деталей предметов | F4: Использует в речи названия предметов и материалов, из которых они изготовлены | H4: Понимает и использует прилагательные, обозначающие свойства предметов | J4: Употребляет слова, обозначающие некоторые родовые и видовые обобщения, признаки | L4: Понимает и использует прилагательные, обозначающие свойства предметов | N4: Использует в речи | Z4: Активен в разговоре, использует разные типы реплик и простые формы объяснительной речи, речевые контакты более длительные и активные | AB4: Использует обобщающие слова | AH4: среднее значение
N5: вкусовые качества | P5: цветовые оттенки | R5: названия предметов и материалов, из которых они изготовлены | T5: названия живых существ и сред их обитания | V5: слова, обозначающие части предметов, объектов и явлений природы, их свойства и качества | X5: наиболее употребительные глаголы | AB5: игрушки | AD5: фрукты | AF5: домашние животные
D6: н.г. | E6: к.г. | F6: н.г. | G6: к.г. | H6: н.г. | I6: к.г. | J6: н.г. | K6: к.г. | L6: н.г. | M6: к.г. | N6: н.г. | O6: к.г. | P6: н.г. | Q6: к.г. | R6: н.г. | S6: к.г. | T6: н.г. | U6: к.г. | V6: н.г. | W6: к.г. | X6: н.г. | Y6: к.г. | Z6: н.г. | AA6: к.г. | AB6: н.г. | AC6: к.г. | AD6: н.г. | AE6: к.г. | AF6: н.г. | AG6: к.г. | AH6: н.г. | AI6: к.г.
B7: 1 | C7: Иванов | AH7: =(D7+F7+H7+J7+L7+N7+P7+R7+T7+V7+X7+Z7+AB7+AD7+AF7)/15 -> 0.00 | AI7: =(E7+G7+I7+K7+M7+O7+Q7+S7+U7+W7+Y7+AA7+AC7+AE7+AG7)/15 -> 0.00
B8: 2 | C8: Петров | AH8: =(D8+F8+H8+J8+L8+N8+P8+R8+T8+V8+X8+Z8+AB8+AD8+AF8)/15 -> 0.00 | AI8: 0.00
B9: 3 | C9: Сидоров | AH9: 0.00 | AI9: 0.00
B10: 4 | AH10: 0.00 | AI10: 0.00
B11: 5 | AH11: 0.00 | AI11: 0.00
B12: 6 | AH12: 0.00 | AI12: 0.00
B13: 7 | AH13: 0.00 | AI13: 0.00
B14: 8 | AH14: 0.00 | AI14: 0.00
B15: 9 | AH15: 0.00 | AI15: 0.00
B16: 10 | AH16: 0.00 | AI16: 0.00
B17: 11 | AH17: 0.00 | AI17: 0.00
B18: 12 | AH18: 0.00 | AI18: 0.00
B19: 13 | AH19: 0.00 | AI19: 0.00
B20: 14 | AH20: 0.00 | AI20: 0.00
B21: 15 | AH21: 0.00 | AI21: 0.00
B22: 16 | AH22: 0.00 | AI22: 0.00
B23: 17 | AH23: 0.00 | AI23: 0.00
B24: 18 | AH24: 0.00 | AI24: 0.00
B25: 19 | AH25: 0.00 | AI25: 0.00
B26: 20 | AH26: 0.00 | AI26: 0.00
B27: 21 | AH27: 0.00 | AI27: 0.00
B28: 22 | AH28: 0.00 | AI28: 0.00
B29: 23 | AH29: 0.00 | AI29: 0.00
B30: 24 | AH30: 0.00 | AI30: 0.00
C31: среднее значение: | D31: =(D7+D8+D9+D10+D11+D12+D13+D14+D15+D16+D17+D18+D19+D20+D21+D22+D23+D24+D25+D26+D27+D28+D29+D30)/COUNTA($C$7:$C$30) -> 0.00 | E31: =(E7+E8+E9+E10+E11+E12+E13+E14+E15+E16+E17+E18+E19+E20+E21+E22+E23+E24+E25+E26+E27+E28+E29+E30)/24 -> 0.00 | F31: =(F7+F8+F9+F10+F11+F12+F13+F14+F15+F16+F17+F18+F19+F20+F21+F22+F23+F24+F25+F26+F27+F28+F29+F30)/24 -> 0.00 | G31: =(G7+G8+G9+G10+G11+G12+G13+G14+G15+G16+G17+G18+G19+G20+G21+G22+G23+G24+G25+G26+G27+G28+G29+G30)/24 -> 0.00 | H31: 0.00 | I31: 0.00 | J31: 0.00 | K31: 0.00 | L31: 0.00 | M31: 0.00 | N31: 0.00 | O31: 0.00 | P31: 0.00 | Q31: 0.00 | R31: 0.00 | S31: 0.00 | T31: 0.00 | U31: 0.00 | V31: 0.00 | W31: 0.00 | X31: 0.00 | Y31: 0.00 | Z31: 0.00 | AA31: 0.00 | AB31: 0.00 | AC31: 0.00 | AD31: 0.00 | AE31: 0.00 | AF31: 0.00 | AG31: 0.00 | AH31: 0.00 | AI31: 0.00
C33: начало года
D34: всего | E34: норма | F34: ниже нормы | G34: низкий
C35: количество детей | D35: =COUNTA($C$7:$C$30) -> 3 | E35: =COUNTIF(AH7:AH30,">=3,8") -> 0 | F35: =COUNTIFS(AH7:AH30,"<3,7",AH7:AH30,">=2,3") -> 0 | G35: =COUNTIFS(AH7:AH30,"<2,2",AH7:AH30,">0") -> 0
C36: % | D36: 100 | E36: =E35*D36/D35 -> 0 | F36: =F35*D36/D35 -> 0.0 | G36: =G35*D36/D35 -> 0.0
C38: конец года
D39: всего | E39: норма | F39: ниже нормы | G39: низкий
C40: количество детей | D40: =COUNTA(C7:C30) -> 3 | E40: =COUNTIF(AI7:AI30,">=3,8") -> 0 | F40: =COUNTIFS(AI7:AI30,"<3,7",AI7:AI30,">=2,3") -> 0 | G40: =COUNTIFS(AI7:AI30,"<2,2",AI7:AI30,">0") -> 0
C41: % | D41: 100 | E41: =E40*D41/D40 -> 0.0 | F41: =F40*D41/D40 -> 0.0 | G41: =G40*D41/D40 -> 0.0

Sheet РР-2
B1: НАПРАВЛЕНИЕ 2. ГРАММАТИЧЕСКИЙ СТРОЙ РЕЧИ. | P1: ОГЛАВЛЕНИЕ
B3: №п/п | C3: ФИ ребенка | D3: Образует и использует в речи существительные | J3: Умеет правильно согласовывать слова в предложении | L3: Употребляет формы повелительного наклонения глаголов | N3: Использует простые сложносочиненные и сложноподчиненные предложения | P3: Правильно понимает и употребляет предлоги с пространственными значениями (в. под, между, около) | R3: Правильно образовывает предметы посуды | T3: среднее значение
D4: множественного числа | F4: в Именительном и Родительном падежах | H4: множественного числа в Родительном падеже
D5: н.г. | E5: к.г. | F5: н.г. | G5: к.г. | H5: н.г. | I5: к.г. | J5: н.г. | K5: к.г. | L5: н.г. | M5: к.г. | N5: н.г. | O5: к.г. | P5: н.г. | Q5: к.г. | R5: н.г. | S5: к.г. | T5: н.г. | U5: к.г.
B6: 1 | C6: Иванов | T6: =(D6+F6+H6+J6+L6+N6+P6+R6)/8 -> 0.00 | U6: =(E6+G6+I6+K6+M6+O6+Q6+S6)/8 -> 0.00
B7: 2 | C7: Петров | T7: =(D7+F7+H7+J7+L7+N7+P7+R7)/8 -> 0.00 | U7: =(E7+G7+I7+K7+M7+O7+Q7+S7)/8 -> 0.00
B8: 3 | C8: Сидоров | T8: 0.00 | U8: 0.00
B9: 4 | T9: 0.00 | U9: 0.00
B10: 5 | T10: 0.00 | U10: 0.00
B11: 6 | T11: 0.00 | U11: 0.00
B12: 7 | T12: 0.00 | U12: 0.00
B13: 8 | T13: 0.00 | U13: 0.00
B14: 9 | T14: 0.00 | U14: 0.00
B15: 10 | T15: 0.00 | U15: 0.00
B16: 11 | T16: 0.00 | U16: 0.00
B17: 12 | T17: 0.00 | U17: 0.00
B18: 13 | T18: 0.00 | U18: 0.00
B19: 14 | T19: 0.00 | U19: 0.00
B20: 15 | T20: 0.00 | U20: 0.00
B21: 16 | T21: 0.00 | U21: 0.00
B22: 17 | T22: 0.00 | U22: 0.00
B23: 18 | T23: 0.00 | U23: 0.00
B24: 19 | T24: 0.00 | U24: 0.00
B25: 20 | T25: 0.00 | U25: 0.00
B26: 21 | T26: 0.00 | U26: 0.00
B27: 22 | T27: 0.00 | U27: 0.00
B28: 23 | T28: 0.00 | U28: 0.00
B29: 24 | T29: 0.00 | U29: 0.00
C30: среднее значение: | D30: =(D6+D7+D8+D9+D10+D11+D12+D13+D14+D15+D16+D17+D18+D19+D20+D21+D22+D23+D24+D25+D26+D27+D28+D29)/COUNTA($C$6:$C$29) -> 0.00 | E30: =(E6+E7+E8+E9+E10+E11+E12+E13+E14+E15+E16+E17+E18+E19+E20+E21+E22+E23+E24+E25+E26+E27+E28+E29)/COUNTA($C$6:$C$29) -> 0.00 | F30: 0.00 | G30: 0.00 | H30: 0.00 | I30: 0.00 | J30: 0.00 | K30: 0.00 | L30: 0.00 | M30: 0.00 | N30: 0.00 | O30: 0.00 | P30: 0.00 | Q30: 0.00 | R30: 0.00 | S30: 0.00 | T30: 0.00 | U30: 0.00
C32: начало года
D33: всего | E33: норма | F33: ниже нормы | G33: низкий
C34: количество детей | D34: =COUNTA($C$6:$C$29) -> 3 | E34: =COUNTIF(T6:T29,">=3,8") -> 0 | F34: =COUNTIFS(T6:T29,"<3,7",T6:T29,">=2,3") -> 0 | G34: =COUNTIFS(T6:T29,"<2,2",T6:T29,">0") -> 0
C35: % | D35: 100 | E35: =E34*D35/D34 -> 0 | F35: =F34*D35/D34 -> 0.0 | G35: =G34*D35/D34 -> 0.0
C37: конец года
D38: всего | E38: норма | F38: ниже нормы | G38: низкий
C39: количество детей | D39: =COUNTA(C5:C28) -> 3 | E39: =COUNTIF(U6:U29,">=3,8") -> 0 | F39: =COUNTIFS(U6:U29,"<3,7",U6:U29,">=2,3") -> 0 | G39: =COUNTIFS(U6:U29,"<2,2",U6:U29,">0") -> 0
C40: % | D40: 100 | E40: =E39*D40/D39 -> 0.0 | F40: =F39*D40/D39 -> 0.0 | G40: =G39*D40/D39 -> 0.0

Sheet РР-3
A1: НАПРАВЛЕНИЕ 3. СВЯЗНАЯ РЕЧЬ | W1: ОГЛАВЛЕНИЕ
A3: №п/п | B3: ФИ ребенка | C3: Вступает в диалог и продуктивно его поддерживает | I3: Может пересказывать небольшие сказки и рассказы, знакомые детям и вновь прочитанные | K3: Умеет составлять по образцу небольшие рассказы | Q3: Использует формы речевого этикета | W3: Умеет вступить, поддержать и завершить общение | Y3: среднее значение
C4: слушает собеседника до конца | E4: задает вопросы по теме диалога | G4: отвечает на вопрсы полно или кратко в зависимости от контекста | K4: о предмете | M4: игрушке | O4: по содержанию сюжетной картины | Q4: при ответе по телефону | S4: при вступлении в разговор с незнакомыми людьми | U4: при встрече гостей
C5: н.г. | D5: к.г. | E5: н.г. | F5: к.г. | G5: н.г. | H5: к.г. | I5: н.г. | J5: к.г. | K5: н.г. | L5: к.г. | M5: н.г. | N5: к.г. | O5: н.г. | P5: к.г. | Q5: н.г. | R5: к.г. | S5: н.г. | T5: к.г. | U5: н.г. | V5: к.г. | W5: н.г. | X5: к.г. | Y5: н.г. | Z5: к.г.
A6: 1 | B6: Иванов | Y6: =(C6+E6+G6+I6+K6+M6+O6+Q6+S6+U6+W6)/11 -> 0.00 | Z6: =(D6+F6+H6+J6+L6+N6+P6+R6+T6+V6+X6)/11 -> 0.00
A7: 2 | B7: Петров | Y7: =(C7+E7+G7+I7+K7+M7+O7+Q7+S7+U7+W7)/11 -> 0.00 | Z7: =(D7+F7+H7+J7+L7+N7+P7+R7+T7+V7+X7)/11 -> 0.00
A8: 3 | B8: Сидоров | Y8: 0.00 | Z8: 0.00
A9: 4 | Y9: 0.00 | Z9: 0.00
A10: 5 | Y10: 0.00 | Z10: 0.00
A11: 6 | Y11: 0.00 | Z11: 0.00
A12: 7 | Y12: 0.00 | Z12: 0.00
A13: 8 | Y13: 0.00 | Z13: 0.00
A14: 9 | Y14: 0.00 | Z14: 0.00
A15: 10 | Y15: 0.00 | Z15: 0.00
A16: 11 | Y16: 0.00 | Z16: 0.00
A17: 12 | Y17: 0.00 | Z17: 0.00
A18: 13 | Y18: 0.00 | Z18: 0.00
A19: 14 | Y19: 0.00 | Z19: 0.00
A20: 15 | Y20: 0.00 | Z20: 0.00
A21: 16 | Y21: 0.00 | Z21: 0.00
A22: 17 | Y22: 0.00 | Z22: 0.00
A23: 18 | Y23: 0.00 | Z23: 0.00
A24: 19 | Y24: 0.00 | Z24: 0.00
A25: 20 | Y25: 0.00 | Z25: 0.00
A26: 21 | Y26: 0.00 | Z26: 0.00
A27: 22 | Y27: 0.00 | Z27: 0.00
A28: 23 | Y28: 0.00 | Z28: 0.00
A29: 24 | Y29: 0.00 | Z29: 0.00
B30: среднее значение: | C30: =(C6+C7+C8+C9+C10+C11+C12+C13+C14+C15+C16+C17+C18+C19+C20+C21+C22+C23+C24+C25+C26+C27+C28+C29)/COUNTA($B$6:$B$29) -> 0.00 | D30: =(D6+D7+D8+D9+D10+D11+D12+D13+D14+D15+D16+D17+D18+D19+D20+D21+D22+D23+D24+D25+D26+D27+D28+D29)/COUNTA($B$6:$B$29) -> 0.00 | E30: 0.00 | F30: 0.00 | G30: 0.00 | H30: 0.00 | I30: 0.00 | J30: 0.00 | K30: 0.00 | L30: 0.00 | M30: 0.00 | N30: 0.00 | O30: 0.00 | P30: 0.00 | Q30: 0.00 | R30: 0.00 | S30: 0.00 | T30: 0.00 | U30: 0.00 | V30: 0.00 | W30: 0.00 | X30: 0.00 | Y30: 0.00 | Z30: 0.00
B33: начало года
C34: всего | D34: норма | E34: ниже нормы | F34: низкий
B35: количество детей | C35: =COUNTA($B$6:$B$29) -> 3 | D35: =COUNTIF(Y6:Y29,">=3,8") -> 0 | E35: =COUNTIFS(Y6:Y29,"<3,7",Y6:Y29,">=2,3") -> 0 | F35: =COUNTIFS(Y6:Y29,"<2,2",Y6:Y29,">0") -> 0
B36: % | C36: 100 | D36: =D35*C36/C35 -> 0 | E36: =E35*C36/C35 -> 0.0 | F36: =F35*C36/C35 -> 0.0
B38: конец года
C39: всего | D39: норма | E39: ниже нормы | F39: низкий
B40: количество детей | C40: =COUNTA(B5:B28) -> 3 | D40: =COUNTIF(Z6:Z29,">=3,8") -> 0 | E40: =COUNTIFS(Z6:Z29,"<3,7",Z6:Z29,">=2,3") -> 0 | F40: =COUNTIFS(Z6:Z29,"<2,2",Z6:Z29,">0") -> 0
B41: % | C41: 100 | D41: =D40*C41/C40 -> 0.0 | E41: =E40*C41/C40 -> 0.0 | F41: =F40*C41/C40 -> 0.0

Sheet РР-4
B1: НАПРАВЛЕНИЕ 4. ЗВУКОВАЯ КУЛЬТУРА РЕЧИ. ПОДГОТОВКА К ОБУЧЕНИЮ ГРАМОТЕ.
V2: ОГЛАВЛЕНИЕ
B4: №п/п | C4: ФИ ребенка | D4: Понимает значение термина "слово", "звук" и правильно употребляет в общении и в речевых играх | F4: Может различать на слух (без выделения терминов) | J4: Умеет различать на слух длинные и короткие слова | L4: Определяет и изолированно произносит первый звук в слове | N4: Может назвать слова с заданным звуком (в первой позиции) | P4: Может выделять голосом звук в слове | T4: Большинство звуков произносит правильно | V4: Позьзуется средствами эмоциональной и речевой выразительности | X4: среднее значение
F5: твердые согласные | H5: мягкие согласные | P5: произносить заданный звук протяжно, громче, четче, чем он произносится обычно | R5: называть изолированно
D6: н.г. | E6: к.г. | F6: н.г. | G6: к.г. | H6: н.г. | I6: к.г. | J6: н.г. | K6: к.г. | L6: н.г. | M6: к.г. | N6: н.г. | O6: к.г. | P6: н.г. | Q6: к.г. | R6: н.г. | S6: к.г. | T6: н.г. | U6: к.г. | V6: н.г. | W6: к.г. | X6: н.г. | Y6: к.г.
B7: 1 | C7: Иванов | X7: =(D7+F7+H7+J7+L7+N7+P7+R7+T7+V7)/10 -> 0.00 | Y7: =(E7+G7+I7+K7+M7+O7+Q7+S7+U7+W7)/10 -> 0.00
B8: 2 | C8: Петров | X8: =(D8+F8+H8+J8+L8+N8+P8+R8+T8+V8)/10 -> 0.00 | Y8: 0.00
B9: 3 | C9: Сидоров | X9: 0.00 | Y9: 0.00
B10: 4 | X10: 0.00 | Y10: 0.00
B11: 5 | X11: 0.00 | Y11: 0.00
B12: 6 | X12: 0.00 | Y12: 0.00
B13: 7 | X13: 0.00 | Y13: 0.00
B14: 8 | X14: 0.00 | Y14: 0.00
B15: 9 | X15: 0.00 | Y15: 0.00
B16: 10 | X16: 0.00 | Y16: 0.00
B17: 11 | X17: 0.00 | Y17: 0.00
B18: 12 | X18: 0.00 | Y18: 0.00
B19: 13 | X19: 0.00 | Y19: 0.00
B20: 14 | X20: 0.00 | Y20: 0.00
B21: 15 | X21: 0.00 | Y21: 0.00
B22: 16 | X22: 0.00 | Y22: 0.00
B23: 17 | X23: 0.00 | Y23: 0.00
B24: 18 | X24: 0.00 | Y24: 0.00
B25: 19 | X25: 0.00 | Y25: 0.00
B26: 20 | X26: 0.00 | Y26: 0.00
B27: 21 | X27: 0.00 | Y27: 0.00
B28: 22 | X28: 0.00 | Y28: 0.00
B29: 23 | X29: 0.00 | Y29: 0.00
B30: 24 | X30: 0.00 | Y30: 0.00
C31: среднее значение: | D31: =(D7+D8+D9+D10+D11+D12+D13+D14+D15+D16+D17+D18+D19+D20+D21+D22+D23+D24+D25+D26+D27+D28+D29+D30)/COUNTA($C$7:$C$30) -> 0.00 | E31: =(E7+E8+E9+E10+E11+E12+E13+E14+E15+E16+E17+E18+E19+E20+E21+E22+E23+E24+E25+E26+E27+E28+E29+E30)/COUNTA($C$7:$C$30) -> 0.00 | F31: 0.00 | G31: 0.00 | H31: 0.00 | I31: 0.00 | J31: 0.00 | K31: 0.00 | L31: 0.00 | M31: 0.00 | N31: 0.00 | O31: 0.00 | P31: 0.00 | Q31: 0.00 | R31: 0.00 | S31: 0.00 | T31: 0.00 | U31: 0.00 | V31: 0.00 | W31: 0.00 | X31: 0.00 | Y31: 0.00
C33: начало года
D34: всего | E34: норма | F34: ниже нормы | G34: низкий
C35: количество детей | D35: =COUNTA($C$7:$C$30) -> 3 | E35: =COUNTIF(X7:X30,">=3,8") -> 0 | F35: =COUNTIFS(X7:X30,"<3,7",X7:X30,">=2,3") -> 0 | G35: =COUNTIFS(X7:X30,"<2,2",X7:X30,">0") -> 0
C36: % | D36: 100 | E36: =E35*D36/D35 -> 0 | F36: =F35*D36/D35 -> 0.0 | G36: =G35*D36/D35 -> 0.0
C38: конец года
D39: всего | E39: норма | F39: ниже нормы | G39: низкий
C40: количество детей | D40: =COUNTA(C6:C29) -> 3 | E40: =COUNTIF(Y7:Y30,">=3,8") -> 0 | F40: =COUNTIFS(Y7:Y30,"<3,7",Y7:Y30,">=2,3") -> 0 | G40: =COUNTIFS(Y7:Y30,"<2,2",Y7:Y30,">0") -> 0
C41: % | D41: 100 | E41: =E40*D41/D40 -> 0.0 | F41: =F40*D41/D40 -> 0.0 | G41: =G40*D41/D40 -> 0.0

Sheet РР-5
B1: НАПРАВЛЕНИЕ 5. ИНТЕРЕС К ХУДОЖЕСТВЕННО ЛИТЕРАТУРЕ.
N2: ОГЛАВЛЕНИЕ
B4: №п/п | C4: ФИ ребенка | D4: Имеет предпочтение в литературных произведениях | F4: Проявляет эмоциональную заинтересованность в драматизации знакомых сказок. | H4: Может пересказать сюжет литературного произведения, заучить стихотворение наизусть | J4: Знает основные особенности жанров литературных произведений | L4: Умеет устанавливать причинно-следственные связи в повествовании, понимает главные характеристики героев | N4: Выразительно читает наизусть потешки, прибаутки, стихотворения. | P4: среднее значение
D6: н.г. | E6: к.г. | F6: н.г. | G6: к.г. | H6: н.г. | I6: к.г. | J6: н.г. | K6: к.г. | L6: н.г. | M6: к.г. | N6: н.г. | O6: к.г. | P6: н.г. | Q6: к.г.
B7: 1 | C7: Иванов | P7: =(D7+F7+H7+J7+L7+N7)/6 -> 0.00 | Q7: =(E7+G7+I7+K7+M7+O7)/6 -> 0.00
B8: 2 | C8: Петров | P8: =(D8+F8+H8+J8+L8+N8)/6 -> 0.00 | Q8: =(E8+G8+I8+K8+M8+O8)/6 -> 0.00
B9: 3 | C9: Сидоров | P9: 0.00 | Q9: 0.00
B10: 4 | P10: 0.00 | Q10: 0.00
B11: 5 | P11: 0.00 | Q11: 0.00
B12: 6 | P12: 0.00 | Q12: 0.00
B13: 7 | P13: 0.00 | Q13: 0.00
B14: 8 | P14: 0.00 | Q14: 0.00
B15: 9 | P15: 0.00 | Q15: 0.00
B16: 10 | P16: 0.00 | Q16: 0.00
B17: 11 | P17: 0.00 | Q17: 0.00
B18: 12 | P18: 0.00 | Q18: 0.00
B19: 13 | P19: 0.00 | Q19: 0.00
B20: 14 | P20: 0.00 | Q20: 0.00
B21: 15 | P21: 0.00 | Q21: 0.00
B22: 16 | P22: 0.00 | Q22: 0.00
B23: 17 | P23: 0.00 | Q23: 0.00
B24: 18 | P24: 0.00 | Q24: 0.00
B25: 19 | P25: 0.00 | Q25: 0.00
B26: 20 | P26: 0.00 | Q26: 0.00
B27: 21 | P27: 0.00 | Q27: 0.00
B28: 22 | P28: 0.00 | Q28: 0.00
B29: 23 | P29: 0.00 | Q29: 0.00
B30: 24 | P30: 0.00 | Q30: 0.00
C31: среднее значение: | D31: =(D7+D8+D9+D10+D11+D12+D13+D14+D15+D16+D17+D18+D19+D20+D21+D22+D23+D24+D25+D26+D27+D28+D29+D30)/COUNTA($C$7:$C$30) -> 0.00 | E31: =(E7+E8+E9+E10+E11+E12+E13+E14+E15+E16+E17+E18+E19+E20+E21+E22+E23+E24+E25+E26+E27+E28+E29+E30)/COUNTA($C$7:$C$30) -> 0.00 | F31: 0.00 | G31: 0.00 | H31: 0.00 | I31: 0.00 | J31: 0.00 | K31: 0.00 | L31: 0.00 | M31: 0.00 | N31: 0.00 | O31: 0.00 | P31: 0.00 | Q31: 0.00
C33: начало года
D34: всего | E34: норма | F34: ниже нормы | G34: низкий
C35: количество детей | D35: =COUNTA($C$7:$C$30) -> 3 | E35: =COUNTIF(P7:P30,">=3,8") -> 0 | F35: =COUNTIFS(P7:P30,"<3,7",P7:P30,">=2,3") -> 0 | G35: =COUNTIFS(P7:P30,"<2,2",P7:P30,">0") -> 0
C36: % | D36: 100 | E36: =E35*D36/D35 -> 0 | F36: =F35*D36/D35 -> 0.0 | G36: =G35*D36/D35 -> 0.0
C38: конец года
D39: всего | E39: норма | F39: ниже нормы | G39: низкий
C40: количество детей | D40: =COUNTA(C6:C29) -> 3 | E40: =COUNTIF(Q7:Q30,">=3,8") -> 0 | F40: =COUNTIFS(Q7:Q30,"<3,7",Q7:Q30,">=2,3") -> 0 | G40: =COUNTIFS(Q7:Q30,"<2,2",Q7:Q30,">0") -> 0
C41: % | D41: 100 | E41: =E40*D41/D40 -> 0.0 | F41: =F40*D41/D40 -> 0.0 | G41: =G40*D41/D40 -> 0.0

Sheet ИТОГ РР
A1: Обобщение результатов педагогической диагностики по направлениям
B2: ОО «Речевое развитие»
A4: ОГЛАВЛЕНИЕ | B4: Развитие словаря | C4: Совершенствование граммат ического строя речи | D4: Связная речь | E4: Звуковая культура речи. Подготовка к обучению грамоте | F4: Интерес к художественной литературе | G4: Средний уровень речевого развития
B5: 1 | C5: 2 | D5: 3 | E5: 4 | F5: 5 | G5: ср.ур.
A6: начало | B6: ='РР-1'!AH31 -> 0.00 | C6: ='РР-2'!T30 -> 0.00 | D6: ='РР-3'!Y30 -> 0.00 | E6: ='РР-4'!X31 -> 0.00 | F6: ='РР-5'!P31 -> 0.00 | G6: =(B6+C6+D6+E6+F6)/5 -> 0.00
A7: конец | B7: ='РР-1'!AI31 -> 0.00 | C7: ='РР-2'!U30 -> 0.00 | D7: ='РР-3'!Z30 -> 0.00 | E7: ='РР-4'!Y31 -> 0.00 | F7: ='РР-5'!Q31 -> 0.00 | G7: =(B7+C7+D7+E7+F7)/5 -> 0.00
A28: ВЫВОДЫ:
A29: Начало учебного года:
A37: Конец учебного года:

Sheet ХЭ-1
A1: Образовательная область «Художественно-эстетическое развитие»
A2: НАПРАВЛЕНИЕ I. ПРИОБЩЕНИЕ К ИСКУССТВУ. | V2: ОГЛАВЛЕНИЕ
A4: №п/п | B4: ФИ ребенка | C4: Знает и называет творческие профессии (артист, художник, композитор, писатель) | E4: Узнает и называет предметы и явления прирды, окружающей действительности в художественных образах: | K4: Умеет различать жанры и виды искусства | AA4: Выделяет и называет основные средства выразительности (цвет, форма, жест, звук) и создает свои художественные образы | AC4: среднее значение
E5: литература | G5: музыка | I5: изобразительное искусство | K5: литература: | Q5: музыка: | U5: картина | W5: скульптура | Y5: архитектура
K6: стихи | M6: проза | O6: загадки | Q6: песни | S6: танцы
C7: н.г. | D7: к.г. | E7: н.г. | F7: к.г. | G7: н.г. | H7: к.г. | I7: н.г. | J7: к.г. | K7: н.г. | L7: к.г. | M7: н.г. | N7: к.г. | O7: н.г. | P7: к.г. | Q7: н.г. | R7: к.г. | S7: н.г. | T7: к.г. | U7: н.г. | V7: к.г. | W7: н.г. | X7: к.г. | Y7: н.г. | Z7: к.г. | AA7: н.г. | AB7: к.г. | AC7: н.г. | AD7: к.г.
A8: 1 | B8: Иванов | AC8: =(C8+E8+G8+I8+K8+M8+O8+Q8+S8+U8+W8+Y8+AA8)/13 -> 0.00 | AD8: =(D8+F8+H8+J8+L8+N8+P8+R8+T8+V8+X8+Z8+AB8)/13 -> 0.00
A9: 2 | B9: Петров | AC9: =(C9+E9+G9+I9+K9+M9+O9+Q9+S9+U9+W9+Y9+AA9)/13 -> 0.00 | AD9: 0.00
A10: 3 | B10: Сидоров | AC10: 0.00 | AD10: 0.00
A11: 4 | AC11: 0.00 | AD11: 0.00
A12: 5 | AC12: 0.00 | AD12: 0.00
A13: 6 | AC13: 0.00 | AD13: 0.00
A14: 7 | AC14: 0.00 | AD14: 0.00
A15: 8 | AC15: 0.00 | AD15: 0.00
A16: 9 | AC16: 0.00 | AD16: 0.00
A17: 10 | AC17: 0.00 | AD17: 0.00
A18: 11 | AC18: 0.00 | AD18: 0.00
A19: 12 | AC19: 0.00 | AD19: 0.00
A20: 13 | AC20: 0.00 | AD20: 0.00
A21: 14 | AC21: 0.00 | AD21: 0.00
A22: 15 | AC22: 0.00 | AD22: 0.00
A23: 16 | AC23: 0.00 | AD23: 0.00
A24: 17 | AC24: 0.00 | AD24: 0.00
A25: 18 | AC25: 0.00 | AD25: 0.00
A26: 19 | AC26: 0.00 | AD26: 0.00
A27: 20 | AC27: 0.00 | AD27: 0.00
A28: 21 | AC28: 0.00 | AD28: 0.00
A29: 22 | AC29: 0.00 | AD29: 0.00
A30: 23 | AC30: 0.00 | AD30: 0.00
A31: 24 | AC31: 0.00 | AD31: 0.00
B32: среднее значение: | C32: =(C8+C9+C10+C11+C12+C13+C14+C15+C16+C17+C18+C19+C20+C21+C22+C23+C24+C25+C26+C27+C28+C29+C30+C31)/COUNTA($B$8:$B$31) -> 0.00 | D32: =(D8+D9+D10+D11+D12+D13+D14+D15+D16+D17+D18+D19+D20+D21+D22+D23+D24+D25+D26+D27+D28+D29+D30+D31)/COUNTA($B$8:$B$31) -> 0.00 | E32: 0.00 | F32: 0.00 | G32: 0.00 | H32: 0.00 | I32: 0.00 | J32: 0.00 | K32: 0.00 | L32: 0.00 | M32: 0.00 | N32: 0.00 | O32: 0.00 | P32: 0.00 | Q32: 0.00 | R32: 0.00 | S32: 0.00 | T32: 0.00 | U32: 0.00 | V32: 0.00 | W32: 0.00 | X32: 0.00 | Y32: 0.00 | Z32: 0.00 | AA32: 0.00 | AB32: 0.00 | AC32: 0.00 | AD32: 0.00
B35: начало года
C36: всего | D36: норма | E36: ниже нормы | F36: низкий
B37: количество детей | C37: =COUNTA($B$8:$B$31) -> 3 | D37: =COUNTIF(AC8:AC31,">=3,8") -> 0 | E37: =COUNTIFS(AC8:AC31,"<3,7",AC8:AC31,">=2,3") -> 0 | F37: =COUNTIFS(AC8:AC31,"<2,2",AC8:AC31,">0") -> 0
B38: % | C38: 100 | D38: =D37*C38/C37 -> 0.00 | E38: =E37*C38/C37 -> 0.00 | F38: =F37*C38/C37 -> 0.00
B40: конец года
C41: всего | D41: норма | E41: ниже нормы | F41: низкий
B42: количество детей | C42: =COUNTA(B8:B31) -> 3 | D42: =COUNTIF(AD8:AD31,">=3,8") -> 0 | E42: =COUNTIFS(AD8:AD31,"<3,7",AD8:AD31,">=2,3") -> 0 | F42: =COUNTIFS(AD8:AD31,"<2,2",AD8:AD31,">0") -> 0
B43: % | C43: 100 | D43: =D42*C43/C42 -> 0.00 | E43: =E42*C43/C42 -> 0.00 | F43: =F42*C43/C42 -> 0.00

Sheet ХЭ-2
B1: НАПРАВЛЕНИЕ 2. ИЗОБРАЗИТЕЛЬНАЯ ДЕЯТЕЛЬНОСТЬ | U1: ОГЛАВЛЕНИЕ
B3: №п/п | C3: ФИ ребенка | D3: Рисование | R3: Народное декоративно-прикладное искусство | T3: Лепка | Z3: Аппликация | AD3: среднее значение
D4: Рисует отдельные предметы и создает сюжетные композиции | F4: Располагает изображения на всем листе в соответствии с содержанием действия объектами | H4: Умеет смешивать краски для получения нужных цветов (коричневый, оранжевый, светло-зеленый) | J4: Правильно держит карандаш, кисть, фломастер | L4: Умеет закрашивать рисунки кистью, карандашом, проводя линии и штрихи только в одном направлении (сверху вниз или слева направо) | N4: Наносить штрихи, маски по всей форме не выходя за пределы контура | P4: Умеет правильно передавать расположение частей при рисовании сложных предметов (кукла, зйчик) и соотносить их по величине | R4: Правильно называет некоторые росписи с опорой на предмет, или его изображение или элемент росписи (городецкая, филимоновская, дымковская) | T4: Использует прием прищипывания в работе с пластилином | V4: Использует в работе стеку | X4: Умеет лепить предметы состоящие из нескольких частей | Z4: Пользуется ножницами, правильно их держит, режет по прямой, преобразовывает одни фигуры в другие (квадрат в круг, прямоугольник в овал) | AB4: Умеет делить форму на 2 или 4 части (круг-на полукруги, четверти; квадрат - на треугольники)
D5: н.г. | E5: к.г. | F5: н.г. | G5: к.г. | H5: н.г. | I5: к.г. | J5: н.г. | K5: к.г. | L5: н.г. | M5: к.г. | N5: н.г. | O5: к.г. | P5: н.г. | Q5: к.г. | R5: н.г. | S5: к.г. | T5: н.г. | U5: к.г. | V5: н.г. | W5: к.г. | X5: н.г. | Y5: к.г. | Z5: н.г. | AA5: к.г. | AB5: н.г. | AC5: к.г. | AD5: н.г. | AE5: к.г.
B6: 1 | C6: Иванов | AD6: =(N6+P6+R6+D6+F6+H6+J6+L6+T6+V6+X6+Z6+AB6)/13 -> 0.00 | AE6: =(O6+Q6+A6+E6+G6+I6+K6+M6+U6+W6+Y6+AA6+AC6+S6)/13 -> 0.00
B7: 2 | C7: Петров | AD7: =(N7+P7+R7+D7+F7+H7+J7+L7+T7+V7+X7+Z7+AB7)/13 -> 0.00 | AE7: =(O7+Q7+A7+E7+G7+I7+K7+M7+U7+W7+Y7+AA7+AC7+S7)/13 -> 0.00
B8: 3 | C8: Сидоров | AD8: 0.00 | AE8: 0.00
B9: 4 | AD9: 0.00 | AE9: 0.00
B10: 5 | AD10: 0.00 | AE10: 0.00
B11: 6 | AD11: 0.00 | AE11: 0.00
B12: 7 | AD12: 0.00 | AE12: 0.00
B13: 8 | AD13: 0.00 | AE13: 0.00
B14: 9 | AD14: 0.00 | AE14: 0.00
B15: 10 | AD15: 0.00 | AE15: 0.00
B16: 11 | AD16: 0.00 | AE16: 0.00
B17: 12 | AD17: 0.00 | AE17: 0.00
B18: 13 | AD18: 0.00 | AE18: 0.00
B19: 14 | AD19: 0.00 | AE19: 0.00
B20: 15 | AD20: 0.00 | AE20: 0.00
B21: 16 | AD21: 0.00 | AE21: 0.00
B22: 17 | AD22: 0.00 | AE22: 0.00
B23: 18 | AD23: 0.00 | AE23: 0.00
B24: 19 | AD24: 0.00 | AE24: 0.00
B25: 20 | AD25: 0.00 | AE25: 0.00
B26: 21 | AD26: 0.00 | AE26: 0.00
B27: 22 | AD27: 0.00 | AE27: 0.00
B28: 23 | AD28: 0.00 | AE28: 0.00
B29: 24 | AD29: 0.00 | AE29: 0.00
C30: среднее значение: | D30: =(D6+D7+D8+D9+D10+D11+D12+D13+D14+D15+D16+D17+D18+D19+D20+D21+D22+D23+D24+D25+D26+D27+D28+D29)/COUNTA($C$6:$C$29) -> 0.00 | E30: =(E6+E7+E8+E9+E10+E11+E12+E13+E14+E15+E16+E17+E18+E19+E20+E21+E22+E23+E24+E25+E26+E27+E28+E29)/COUNTA($C$6:$C$29) -> 0.00 | F30: 0.00 | G30: 0.00 | H30: 0.00 | I30: 0.00 | J30: 0.00 | K30: 0.00 | L30: 0.00 | M30: 0.00 | N30: 0.00 | O30: 0.00 | P30: 0.00 | Q30: 0.00 | R30: 0.00 | S30: 0.00 | T30: 0.00 | U30: 0.00 | V30: 0.00 | W30: 0.00 | X30: 0.00 | Y30: 0.00 | Z30: 0.00 | AA30: 0.00 | AB30: 0.00 | AC30: 0.00 | AD30: 0.00 | AE30: 0.00
C32: начало года
D33: всего | E33: норма | F33: ниже нормы | G33: низкий
C34: количество детей | D34: =COUNTA($C$6:$C$29) -> 3 | E34: =COUNTIF(AD6:AD29,">=3,8") -> 0 | F34: =COUNTIFS(AD6:AD29,"<3,7",AD6:AD29,">=2,3") -> 0 | G34: =COUNTIFS(AD6:AD29,"<2,2",AD6:AD29,">0") -> 0
C35: % | D35: 100 | E35: =E34*D35/D34 -> 0.00 | F35: =F34*D35/D34 -> 0.00 | G35: =G34*D35/D34 -> 0.00
C38: конец года
D39: всего | E39: норма | F39: ниже нормы | G39: низкий
C40: количество детей | D40: =COUNTA(C5:C28) -> 3 | E40: =COUNTIF(AE6:AE29,">=3,8") -> 0 | F40: =COUNTIFS(AE6:AE29,"<3,7",AE6:AE29,">=2,3") -> 0 | G40: =COUNTIFS(AE6:AE29,"<2,2",AE6:AE29,">0") -> 0
C41: % | D41: 100 | E41: =E40*D41/D40 -> 0.00 | F41: =F40*D41/D40 -> 0.00 | G41: =G40*D41/D40 -> 0.00

Sheet ХЭ-3
B1: НАПРАВЛЕНИЕ 3. КОНСТРУКТИВНАЯ ДЕЯТЕЛЬНОСТЬ
B3: №п/п | C3: ФИ ребенка | D3: Конструктивная деятельность | N3: среднее значение
D4: Умеет выделять и называть части построек, определить их назначение и пространственное расположение | F4: Умеет создавать постройки разной конструктивной сложности (гараж на несколько машин, дом 2-3 этажа) | H4: Использует постройки в сюжетно-ролевых играх | J4: Умеет сгибать лист бумагипополам, совмещая стороны и углы | L4: Умеет сгибать лист бумагипополам, совмещая стороны и углы
D5: н.г. | E5: к.г. | F5: н.г. | G5: к.г. | H5: н.г. | I5: к.г. | J5: н.г. | K5: к.г. | L5: н.г. | M5: к.г. | N5: н.г. | O5: к.г.
B6: 1 | C6: Иванов | N6: =(D6+F6+H6+J6+L6)/4 -> 0.00 | O6: =(E6+G6+I6+K6+M6)/4 -> 0.00
B7: 2 | C7: Петров | N7: =(D7+F7+H7+J7+L7)/4 -> 0.00 | O7: =(E7+G7+I7+K7+M7)/4 -> 0.00
B8: 3 | C8: Сидоров | N8: 0.00 | O8: 0.00
B9: 4 | N9: 0.00 | O9: 0.00
B10: 5 | N10: 0.00 | O10: 0.00
B11: 6 | N11: 0.00 | O11: 0.00
B12: 7 | N12: 0.00 | O12: 0.00
B13: 8 | N13: 0.00 | O13: 0.00
B14: 9 | N14: 0.00 | O14: 0.00
B15: 10 | N15: 0.00 | O15: 0.00
B16: 11 | N16: 0.00 | O16: 0.00
B17: 12 | N17: 0.00 | O17: 0.00
B18: 13 | N18: 0.00 | O18: 0.00
B19: 14 | N19: 0.00 | O19: 0.00
B20: 15 | N20: 0.00 | O20: 0.00
B21: 16 | N21: 0.00 | O21: 0.00
B22: 17 | N22: 0.00 | O22: 0.00
B23: 18 | N23: 0.00 | O23: 0.00
B24: 19 | N24: 0.00 | O24: 0.00
B25: 20 | N25: 0.00 | O25: 0.00
B26: 21 | N26: 0.00 | O26: 0.00
B27: 22 | N27: 0.00 | O27: 0.00
B28: 23 | N28: 0.00 | O28: 0.00
B29: 24 | N29: 0.00 | O29: 0.00
C30: среднее значение: | D30: =(D6+D7+D8+D9+D10+D11+D12+D13+D14+D15+D16+D17+D18+D19+D20+D21+D22+D23+D24+D25+D26+D27+D28+D29)/COUNTA($C$6:$C$29) -> 0.00 | E30: =(E6+E7+E8+E9+E10+E11+E12+E13+E14+E15+E16+E17+E18+E19+E20+E21+E22+E23+E24+E25+E26+E27+E28+E29)/COUNTA($C$6:$C$29) -> 0.00 | F30: 0.00 | G30: 0.00 | H30: 0.00 | I30: 0.00 | J30: 0.00 | K30: 0.00 | L30: 0.00 | M30: 0.00 | N30: 0.00 | O30: 0.00
C32: начало года
D33: всего | E33: норма | F33: ниже нормы | G33: низкий
C34: количество детей | D34: =COUNTA($C$6:$C$29) -> 3 | E34: =COUNTIF(N6:N29,">=3,8") -> 0 | F34: =COUNTIFS(N6:N29,"<3,7",N6:N29,">=2,3") -> 0 | G34: =COUNTIFS(N6:N29,"<2,2",N6:N29,">0") -> 0
C35: % | D35: 100 | E35: =E34*D35/D34 -> 0.00 | F35: =F34*D35/D34 -> 0.00 | G35: =G34*D35/D34 -> 0.00
C37: конец года
D38: всего | E38: норма | F38: ниже нормы | G38: низкий
C39: количество детей | D39: =COUNTA($C$6:$C$29) -> 3 | E39: =COUNTIF(O6:O29,">=3,8") -> 0 | F39: =COUNTIFS(O6:O29,"<3,7",O6:O29,">=2,3") -> 0 | G39: =COUNTIFS(O6:O29,"<2,2",O6:O29,">0") -> 0
C40: % | D40: 100 | E40: =E39*D40/D39 -> 0.00 | F40: =F39*D40/D39 -> 0.00 | G40: =G39*D40/D39 -> 0.00

Sheet ХЭ-4
B1: НАПРАВЛЕНИЕ 4. МУЗЫКАЛЬНАЯ ДЕЯТЕЛЬНОСТЬ | X1: ОГЛАВЛЕНИЕ
B3: №п/п | C3: ФИ ребенка | D3: Слушание | J3: Пение | N3: Песенное творчество | R3: Музыкально-ритмические движения | V3: Танцевально-игровое творчество | Z3: Игра на ДМИ | AB3: среднее значение
D4: Узнаёт знакомые произведения | F4: Различает звуки по высоте (высокий, низкий в пределах сексты-септимы). | H4: Замечает выразительные средства музыкального произведения: тихо, громко, медленно, быстро. | J4: Выразительное пение | L4: Умеет петь с инструментальным сопровождением и без него (с помощью педагога) | N4: Умеет сочинять мелодию колыбельной песни и отвечать на музыкальные вопросы | P4: Умеет импровизировать мелодию на заданный текст | R4: Выполняет движения, отвечающие характеру музыки, самостоятельно меняя их в соответствии с двухчастной формой .музыкального произведения; | T4: Выполняет танцевальные движения: галоп, пружинка, кружение по одному и в парах, простейшие перестроения, подскоки | V4: Эмоционально-образно исполняет музыкально-игровые упражнения и сценки используя мимику и пантомиму | X4: Умеет инсценировать песни и небольшие музыкальные спектакли | Z4: Умеет подыгрывать простейшие мелодии на металлофоне, деревянных ложках, погремушках, барабане
D5: н.г. | E5: к.г. | F5: н.г. | G5: к.г. | H5: н.г. | I5: к.г. | J5: н.г. | K5: к.г. | L5: н.г. | M5: к.г. | N5: н.г. | O5: к.г. | P5: н.г. | Q5: к.г. | R5: н.г. | S5: к.г. | T5: н.г. | U5: к.г. | V5: н.г. | W5: к.г. | X5: н.г. | Y5: к.г. | Z5: н.г. | AA5: к.г. | AB5: н.г. | AC5: к.г.
B6: 1 | C6: Иванов | AB6: =(D6+F6+H6+J6+L6+N6+P6+R6+T6+V6+X6+Z6)/12 -> 0.00 | AC6: =(E6+G6+I6+K6+M6+O6+Q6+S6+U6+W6+Y6+AA6)/12 -> 0.00
B7: 2 | C7: Петров | AB7: =(D7+F7+H7+J7+L7+N7+P7+R7+T7+V7+X7+Z7)/12 -> 0.00 | AC7: 0.00
B8: 3 | C8: Сидоров | AB8: 0.00 | AC8: 0.00
B9: 4 | AB9: 0.00 | AC9: 0.00
B10: 5 | AB10: 0.00 | AC10: 0.00
B11: 6 | AB11: 0.00 | AC11: 0.00
B12: 7 | AB12: 0.00 | AC12: 0.00
B13: 8 | AB13: 0.00 | AC13: 0.00
B14: 9 | AB14: 0.00 | AC14: 0.00
B15: 10 | AB15: 0.00 | AC15: 0.00
B16: 11 | AB16: 0.00 | AC16: 0.00
B17: 12 | AB17: 0.00 | AC17: 0.00
B18: 13 | AB18: 0.00 | AC18: 0.00
B19: 14 | AB19: 0.00 | AC19: 0.00
B20: 15 | AB20: 0.00 | AC20: 0.00
B21: 16 | AB21: 0.00 | AC21: 0.00
B22: 17 | AB22: 0.00 | AC22: 0.00
B23: 18 | AB23: 0.00 | AC23: 0.00
B24: 19 | AB24: 0.00 | AC24: 0.00
B25: 20 | AB25: 0.00 | AC25: 0.00
B26: 21 | AB26: 0.00 | AC26: 0.00
B27: 22 | AB27: 0.00 | AC27: 0.00
B28: 23 | AB28: 0.00 | AC28: 0.00
B29: 24 | AB29: 0.00 | AC29: 0.00
C30: среднее значение: | D30: =(D6+D7+D8+D9+D10+D11+D12+D13+D14+D15+D16+D17+D18+D19+D20+D21+D22+D23+D24+D25+D26+D27+D28+D29)/COUNTA($C$6:$C$29) -> 0.00 | E30: =(E6+E7+E8+E9+E10+E11+E12+E13+E14+E15+E16+E17+E18+E19+E20+E21+E22+E23+E24+E25+E26+E27+E28+E29)/COUNTA($C$6:$C$29) -> 0.00 | F30: 0.00 | G30: 0.00 | H30: 0.00 | I30: 0.00 | J30: 0.00 | K30: 0.00 | L30: 0.00 | M30: 0.00 | N30: 0.00 | O30: 0.00 | P30: 0.00 | Q30: 0.00 | R30: 0.00 | S30: 0.00 | T30: 0.00 | U30: 0.00 | V30: 0.00 | W30: 0.00 | X30: 0.00 | Y30: 0.00 | Z30: 0.00 | AA30: 0.00 | AB30: =(D30+F30+H30+J30+L30+N30+P30+R30+T30+V30+X30+Z30)/12 -> 0.00 | AC30: =(E30+G30+I30+K30+M30+O30+Q30+S30+U30+W30+Y30+AA30)/12 -> 0.00
C32: начало года
D33: всего | E33: норма | F33: ниже нормы | G33: низкий
C34: количество детей | D34: =COUNTA($C$6:$C$29) -> 3 | E34: =COUNTIF(AB6:AB29,">=3,8") -> 0 | F34: =COUNTIFS(AB6:AB29,"<3,7",AB6:AB29,">=2,3") -> 0 | G34: =COUNTIFS(AB6:AB29,"<2,2",AB6:AB29,">0") -> 0
C35: % | D35: 100 | E35: =E34*D35/D34 -> 0.00 | F35: =F34*D35/D34 -> 0.00 | G35: =G34*D35/D34 -> 0.00
C37: конец года
D38: всего | E38: норма | F38: ниже нормы | G38: низкий
C39: количество детей | D39: =COUNTA(C5:C28) -> 3 | E39: =COUNTIF(AC6:AC29,">=3,8") -> 0 | F39: =COUNTIFS(AC6:AC29,"<3,7",AC6:AC29,">=2,3") -> 0 | G39: =COUNTIFS(AC6:AC29,"<2,2",AC6:AC29,">0") -> 0
C40: % | D40: 100 | E40: =E39*D40/D39 -> 0.00 | F40: =F39*D40/D39 -> 0.00 | G40: =G39*D40/D39 -> 0.00

Sheet ХЭ-5
A1: НАПРАВЛЕНИЕ 5,6. ТЕАТРАЛИЗОВАННАЯ И КУЛЬТУРНО-ДОСУГОВАЯ ДЕЯТЕЛЬНОСТЬ
M2: ОГЛАВЛЕНИЕ
A3: №п/п | B3: ФИ ребенка | C3: Театрализованная деятельность | G3: среднее значение | I3: Культурно-досуговая деятельность | M3: среднее значение
C4: Участвует в разыгрывании простых представлений | E4: Использует в играх различные виды театра (бибабо, нстольный, плоскостной) | I4: Участвует в подготовке развлечения | K4: С удовольствием участвует в праздниках, развлечениях и тд
C5: н.г. | D5: к.г. | E5: н.г. | F5: к.г. | G5: н.г. | H5: к.г. | I5: н.г. | J5: к.г. | K5: н.г. | L5: к.г. | M5: н.г. | N5: к.г.
A6: 1 | B6: Иванов | G6: =(C6+E6)/2 -> 0.00 | H6: =(D6+F6)/2 -> 0.00 | M6: =(I6+K6)/2 -> 0.00 | N6: 0.00
A7: 2 | B7: Петров | G7: =(C7+E7)/2 -> 0.00 | H7: 0.00 | M7: 0.00 | N7: 0.00
A8: 3 | B8: Сидоров | G8: 0.00 | H8: 0.00 | M8: 0.00 | N8: 0.00
A9: 4 | G9: 0.00 | H9: 0.00 | M9: 0.00 | N9: 0.00
A10: 5 | G10: 0.00 | H10: 0.00 | M10: 0.00 | N10: 0.00
A11: 6 | G11: 0.00 | H11: 0.00 | M11: 0.00 | N11: 0.00
A12: 7 | G12: 0.00 | H12: 0.00 | M12: 0.00 | N12: 0.00
A13: 8 | G13: 0.00 | H13: 0.00 | M13: 0.00 | N13: 0.00
A14: 9 | G14: 0.00 | H14: 0.00 | M14: 0.00 | N14: 0.00
A15: 10 | G15: 0.00 | H15: 0.00 | M15: 0.00 | N15: 0.00
A16: 11 | G16: 0.00 | H16: 0.00 | M16: 0.00 | N16: 0.00
A17: 12 | G17: 0.00 | H17: 0.00 | M17: 0.00 | N17: 0.00
A18: 13 | G18: 0.00 | H18: 0.00 | M18: 0.00 | N18: 0.00
A19: 14 | G19: 0.00 | H19: 0.00 | M19: 0.00 | N19: 0.00
A20: 15 | G20: 0.00 | H20: 0.00 | M20: 0.00 | N20: 0.00
A21: 16 | G21: 0.00 | H21: 0.00 | M21: 0.00 | N21: 0.00
A22: 17 | G22: 0.00 | H22: 0.00 | M22: 0.00 | N22: 0.00
A23: 18 | G23: 0.00 | H23: 0.00 | M23: 0.00 | N23: 0.00
A24: 19 | G24: 0.00 | H24: 0.00 | M24: 0.00 | N24: 0.00
A25: 20 | G25: 0.00 | H25: 0.00 | M25: 0.00 | N25: 0.00
A26: 21 | G26: 0.00 | H26: 0.00 | M26: 0.00 | N26: 0.00
A27: 22 | G27: 0.00 | H27: 0.00 | M27: 0.00 | N27: 0.00
A28: 23 | G28: 0.00 | H28: 0.00 | M28: 0.00 | N28: 0.00
A29: 24 | G29: 0.00 | H29: 0.00 | M29: 0.00 | N29: 0.00
B30: среднее значение: | C30: =(C6+C7+C8+C9+C10+C11+C12+C13+C14+C15+C16+C17+C18+C19+C20+C21+C22+C23+C24+C25+C26+C27+C28+C29)/COUNTA($B$6:$B$29) -> 0.00 | D30: =(D6+D7+D8+D9+D10+D11+D12+D13+D14+D15+D16+D17+D18+D19+D20+D21+D22+D23+D24+D25+D26+D27+D28+D29)/COUNTA($B$6:$B$29) -> 0.00 | E30: 0.00 | F30: 0.00 | G30: =(C30+E30)/2 -> 0.00 | H30: =(D30+F30)/2 -> 0.00 | I30: 0.00 | J30: 0.00 | K30: 0.00 | L30: 0.00 | M30: =(I30+K30)/2 -> 0.00 | N30: =(J30+L30)/2 -> 0.00
B32: ТЕАТРАЛИЗОВАННАЯ ДЕЯТЕЛЬНОСТЬ: | H32: КУЛЬТУРНО-ДОСУГОВАЯ ДЕЯТЕЛЬНОСТЬ:
B33: начало года | H33: начало года
C34: всего | D34: норма | E34: ниже нормы | F34: низкий | K34: всего | L34: норма | M34: ниже нормы | N34: низкий
B35: количество детей | C35: =COUNTA($B$6:$B$29) -> 3 | D35: =COUNTIF(G6:G29,">=3,8") -> 0 | E35: =COUNTIFS(G6:G29,"<3,7",G6:G29,">=2,3") -> 0 | F35: =COUNTIFS(G6:G29,"<2,2",G6:G29,">0") -> 0 | H35: количество детей | K35: =COUNTA(B6:B29) -> 3 | L35: =COUNTIF(M9:M29,">=3,8") -> 0 | M35: =COUNTIFS(M9:M29,"<3,7",M9:M29,">=2,3") -> 0 | N35: =COUNTIFS(M9:M29,"<2,2",M9:M29,">0") -> 0
B36: % | C36: 100 | D36: =D35*C36/C35 -> 0.00 | E36: =E35*C36/C35 -> 0.00 | F36: =F35*C36/C35 -> 0.00 | H36: % | K36: 100 | L36: =L35*K36/K35 -> 0.00 | M36: =M35*K36/K35 -> 0.00 | N36: =N35*K36/K35 -> 0.00
B37: конец года | H37: конец года
C38: всего | D38: норма | E38: ниже нормы | F38: низкий | K38: всего | L38: норма | M38: ниже нормы | N38: низкий
B39: количество детей | C39: =COUNTA(B5:B28) -> 3 | D39: =COUNTIF(H6:H29,">=3,8") -> 0 | E39: =COUNTIFS(H6:H29,"<3,7",H6:H29,">=2,3") -> 0 | F39: =COUNTIFS(H6:H29,"<2,2",H6:H29,">0") -> 0 | H39: количество детей | K39: =COUNTA(B6:B29) -> 3 | L39: =COUNTIF(N9:N29,">=3,8") -> 0 | M39: =COUNTIFS(N9:N29,"<3,7",N9:N29,">=2,3") -> 0 | N39: =COUNTIFS(N9:N29,"<2,2",N9:N29,">0") -> 0
B40: % | C40: 100 | D40: =D39*C40/C39 -> 0.00 | E40: =E39*C40/C39 -> 0.00 | F40: =F39*C40/C39 -> 0.00 | H40: % | K40: 100 | L40: =L39*K40/K39 -> 0.00 | M40: =M39*K40/K39 -> 0.00 | N40: =N39*K40/K39 -> 0.00

Sheet ИТОГ ХЭ
A1: Обобщение результатов педагогической диагностики по направлениям
A2: ОО «Художественно-эстетическое развитие»
A4: ОГЛАВЛЕНИЕ | B4: Приобщение к искусству | C4: Изобразительная деятельность | D4: Конструктивная деятельность | E4: Музыкальная деятельность | F4: Театрализованная деятельность | G4: Культурно - досуговая деятельность | H4: Средний балл/уровень
B5: 1 | C5: 2 | D5: 3 | E5: 4 | F5: 5 | G5: 6 | H5: ср.ур.
A6: начало | B6: ='ХЭ-1'!AC32 -> 0.00 | C6: ='ХЭ-2'!AD30 -> 0.00 | D6: ='ХЭ-3'!N30 -> 0.00 | E6: ='ХЭ-4'!AB30 -> 0.00 | F6: ='ХЭ-5'!G30 -> 0.00 | G6: ='ХЭ-5'!M30 -> 0.00 | H6: =(B6+C6+D6+E6+F6+G6)/6 -> 0.00
A7: конец | B7: ='ХЭ-1'!AD32 -> 0.00 | C7: ='ХЭ-2'!AE30 -> 0.00 | D7: ='ХЭ-3'!O30 -> 0.00 | E7: ='ХЭ-4'!AC30 -> 0.00 | F7: ='ХЭ-5'!H30 -> 0.00 | G7: ='ХЭ-5'!N30 -> 0.00 | H7: =(B7+C7+D7+E7+F7+G7)/6 -> 0.00
A28: ВЫВОДЫ:
A29: Начало учебного года:
A37: Конец учебного года:

Sheet ФР-1
A1: Образовательная область «Физическое развитие»
A2: НАПРАВЛЕНИЕ I. ОСНОВНАЯ ГИМНАСТИКА. ПОДВИЖНЫЕ ИГРЫ. СПОРТИВНЫЕ УПРАЖНЕНИЯ | X2: ОГЛАВЛЕНИЕ
A4: №п/п | B4: ФИ ребенка | C4: Основные движения | AA4: Подвижные игры | AC4: Спортивные упражнения | AI4: среднее значение
C5: Умеет прокатывать мяч между линиями, шнурами, палками | E5: Умеет прокатывать обруч педагогу, друг другу в парах | G5: Умеет перебрасывать мяч друг другу, бросает двумя руками из-за головы, отбивает мяч о землю правой и левой рукой не менее 5 раз | I5: Ползает на четвереньказ по заданию: "змейкой", в обручи, под дуги, по наклонной доске | K5: Умеет ходить в колонне но одному | M5: Умеет бегать в колонне по одному, на носках, высоко поднимая колени; обегая предметы; на месте; бег в рассыпную по сигналу с последующим нахождением своего места в колонне | O5: Умеет прыгатьна двух ногах на месте, с поворотом вправо и влево, вокруг себя | Q5: Прыгает на двух ногах на месте. с продвижением вперед, перепрыгивает через шнур, плоский кубик | S5: Умеет ходить по доске(перешагивание через предметы, с мешочком на голове, с предметов в руках, ставя ногу с носка - руки в стороны) | U5: Выполняеет ОРУ из разных И.п., в разном темпе, с предметамии без | W5: Умеет перестраиваться в колонну по одному, по два, по росту, в рассыпную | Y5: Упеет перестраиваться из колонны по одному в колонну по 2 в движении | AA5: соблюдает правила игры | AC5: Умеет ходить на лыжах скользящим шагом, повороты н месте, подъем в гору "ступающим шагом", "полуёлочкой" | AE5: Катание на велосипеде, самокате: по прямой, по кругу с поворотами, с разной скоростью | AG5: Переносит освоенные движения в самостоятельную деятельность
C6: н.г. | D6: к.г. | E6: н.г. | F6: к.г. | G6: н.г. | H6: к.г. | I6: н.г. | J6: к.г. | K6: н.г. | L6: к.г. | M6: н.г. | N6: к.г. | O6: н.г. | P6: к.г. | Q6: н.г. | R6: к.г. | S6: н.г. | T6: к.г. | U6: н.г. | V6: к.г. | W6: н.г. | X6: к.г. | Y6: н.г. | Z6: к.г. | AA6: н.г. | AB6: к.г. | AC6: н.г. | AD6: к.г. | AE6: н.г. | AF6: к.г. | AG6: н.г. | AH6: к.г. | AI6: н.г. | AJ6: к.г.
A7: 1 | B7: Иванов | AI7: =(C7+E7+G7+I7+K7+M7+O7+Q7+S7+U7+W7+Y7+AA7+AC7+AE7+AG7)/16 -> 0.0 | AJ7: =(D7+F7+H7+J7+L7+N7+P7+R7+T7+V7+X7+Z7+AB7+AD7+AF7+AH7)/16 -> 0.0
A8: 2 | B8: Петров | AI8: =(C8+E8+G8+I8+K8+M8+O8+Q8+S8+U8+W8+Y8+AA8+AC8+AE8+AG8)/16 -> 0.0 | AJ8: 0.0
A9: 3 | B9: Сидоров | AI9: 0.0 | AJ9: 0.0
A10: 4 | AI10: 0.0 | AJ10: 0.0
A11: 5 | AI11: 0.0 | AJ11: 0.0
A12: 6 | AI12: 0.0 | AJ12: 0.0
A13: 7 | AI13: 0.0 | AJ13: 0.0
A14: 8 | AI14: 0.0 | AJ14: 0.0
A15: 9 | AI15: 0.0 | AJ15: 0.0
A16: 10 | AI16: 0.0 | AJ16: 0.0
A17: 11 | AI17: 0.0 | AJ17: 0.0
A18: 12 | AI18: 0.0 | AJ18: 0.0
A19: 13 | AI19: 0.0 | AJ19: 0.0
A20: 14 | AI20: 0.0 | AJ20: 0.0
A21: 15 | AI21: 0.0 | AJ21: 0.0
A22: 16 | AI22: 0.0 | AJ22: 0.0
A23: 17 | AI23: 0.0 | AJ23: 0.0
A24: 18 | AI24: 0.0 | AJ24: 0.0
A25: 19 | AI25: 0.0 | AJ25: 0.0
A26: 20 | AI26: 0.0 | AJ26: 0.0
A27: 21 | AI27: 0.0 | AJ27: 0.0
A28: 22 | AI28: 0.0 | AJ28: 0.0
A29: 23 | AI29: 0.0 | AJ29: 0.0
A30: 24 | AI30: 0.0 | AJ30: 0.0
B31: среднее значение: | C31: =(C7+C8+C9+C10+C11+C12+C13+C14+C15+C16+C17+C18+C19+C20+C21+C22+C23+C24+C25+C26+C27+C28+C29+C30)/COUNTA($B$7:$B$30) -> 0.0 | D31: =(D7+D8+D9+D10+D11+D12+D13+D14+D15+D16+D17+D18+D19+D20+D21+D22+D23+D24+D25+D26+D27+D28+D29+D30)/COUNTA($B$7:$B$30) -> 0.0 | E31: 0.0 | F31: 0.0 | G31: 0.0 | H31: 0.0 | I31: 0.0 | J31: 0.0 | K31: 0.0 | L31: 0.0 | M31: 0.0 | N31: 0.0 | O31: 0.0 | P31: 0.0 | Q31: 0.0 | R31: 0.0 | S31: 0.0 | T31: 0.0 | U31: 0.0 | V31: 0.0 | W31: 0.0 | X31: 0.0 | Y31: 0.0 | Z31: 0.0 | AA31: 0.0 | AB31: 0.0 | AC31: 0.0 | AD31: 0.0 | AE31: 0.0 | AF31: 0.0 | AG31: 0.0 | AH31: 0.0 | AI31: 0.0 | AJ31: 0.0
B33: начало года
C34: всего | D34: норма | E34: ниже нормы | F34: низкий
B35: количество детей | C35: =COUNTA($B$7:$B$30) -> 3 | D35: =COUNTIF(AI7:AI30,">=3,8") -> 0 | E35: =COUNTIFS(AI7:AI30,"<3,7",AI7:AI30,">=2,3") -> 0 | F35: =COUNTIFS(AI7:AI30,"<2,2",AI7:AI30,">0") -> 0
B36: % | C36: 100 | D36: =D35*C36/C35 -> 0 | E36: =E35*C36/C35 -> 0.0 | F36: =F35*C36/C35 -> 0.0
B38: конец года
C39: всего | D39: норма | E39: ниже нормы | F39: низкий
B40: количество детей | C40: =COUNTA(B7:B30) -> 3 | D40: =COUNTIF(AJ7:AJ30,">=3,8") -> 0 | E40: =COUNTIFS(AJ7:AJ30,"<3,7",AJ7:AJ30,">=2,3") -> 0 | F40: =COUNTIFS(AJ7:AJ30,"<2,2",AJ7:AJ30,">0") -> 0
B41: % | C41: 100 | D41: =D40*C41/C40 -> 0.0 | E41: =E40*C41/C40 -> 0.0 | F41: =F40*C41/C40 -> 0.0

Sheet ФР-2
A1: НАПРАВЛЕНИЕ 2. ФОРМИРОВАНИЕ ОСНОВ ЗДОРОВОГО ОБРАЗА ЖИЗНИ. АКТИВНЫЙ ОТДЫХ | P1: ОГЛАВЛЕНИЕ
A3: №п/п | B3: ФИ ребенка | C3: Умеет охараетенизовать свое самочувствие, привлечь внимание взрослого в случае недомогания | E3: Стремится в самостоятельному осуществлению процессов личной гигиены, их правильной организации | G3: Знает назначение частей тела и некоторых органов, может рассказать об этом | I3: Воспроизводит некоторые пальчиковые игры на одной и двух руках | K3: Умеет удерживать двумя пальцами мелкие предметы, переносить и класть, в маленькую емкость | M3: Соблюдает правила безопасного поведения в двигательной деятельности | O3: Знает о значении для здоровья утренней гим­настики, закаливания, соблюдения режима дня, спортивных игр | Q3: среднее значение
C4: н.г. | D4: к.г. | E4: н.г. | F4: к.г. | G4: н.г. | H4: к.г. | I4: н.г. | J4: к.г. | K4: н.г. | L4: к.г. | M4: н.г. | N4: к.г. | O4: н.г. | P4: к.г. | Q4: н.г. | R4: к.г.
A5: 1 | B5: Иванов | Q5: =(C5+E5+G5+I5+K5+M5+O5)/7 -> 0.0 | R5: =(D5+F5+H5+J5+L5+N5+P5)/7 -> 0.0
A6: 2 | B6: Петров | Q6: =(C6+E6+G6+I6+K6+M6+O6)/7 -> 0.0 | R6: 0.0
A7: 3 | B7: Сидоров | Q7: 0.0 | R7: 0.0
A8: 4 | Q8: 0.0 | R8: 0.0
A9: 5 | Q9: 0.0 | R9: 0.0
A10: 6 | Q10: 0.0 | R10: 0.0
A11: 7 | Q11: 0.0 | R11: 0.0
A12: 8 | Q12: 0.0 | R12: 0.0
A13: 9 | Q13: 0.0 | R13: 0.0
A14: 10 | Q14: 0.0 | R14: 0.0
A15: 11 | Q15: 0.0 | R15: 0.0
A16: 12 | Q16: 0.0 | R16: 0.0
A17: 13 | Q17: 0.0 | R17: 0.0
A18: 14 | Q18: 0.0 | R18: 0.0
A19: 15 | Q19: 0.0 | R19: 0.0
A20: 16 | Q20: 0.0 | R20: 0.0
A21: 17 | Q21: 0.0 | R21: 0.0
A22: 18 | Q22: 0.0 | R22: 0.0
A23: 19 | Q23: 0.0 | R23: 0.0
A24: 20 | Q24: 0.0 | R24: 0.0
A25: 21 | Q25: 0.0 | R25: 0.0
A26: 22 | Q26: 0.0 | R26: 0.0
A27: 23 | Q27: 0.0 | R27: 0.0
A28: 24 | Q28: 0.0 | R28: 0.0
B29: среднее значение: | C29: =(C5+C6+C7+C8+C9+C10+C11+C12+C13+C14+C15+C16+C17+C18+C19+C20+C21+C22+C23+C24+C25+C26+C27+C28)/COUNTA($B$5:$B$28) -> 0.0 | D29: =(D5+D6+D7+D8+D9+D10+D11+D12+D13+D14+D15+D16+D17+D18+D19+D20+D21+D22+D23+D24+D25+D26+D27+D28)/COUNTA($B$5:$B$28) -> 0.0 | E29: 0.0 | F29: 0.0 | G29: 0.0 | H29: 0.0 | I29: 0.0 | J29: 0.0 | K29: 0.0 | L29: 0.0 | M29: 0.0 | N29: 0.0 | O29: 0.0 | P29: 0.0 | Q29: 0.0 | R29: 0.0
B31: начало года
C32: всего | D32: норма | E32: ниже нормы | F32: низкий
B33: количество детей | C33: =COUNTA($B$5:$B$28) -> 3 | D33: =COUNTIF(Q5:Q28,">=4") -> 0 | E33: =COUNTIFS(Q5:Q28,"<3,9",Q5:Q28,">=3") -> 0 | F33: =COUNTIFS(Q5:Q28,"<2",Q5:Q28,">0") -> 0
B34: % | C34: 100 | D34: =D33*C34/C33 -> 0 | E34: =E33*C34/C33 -> 0.0 | F34: =F33*C34/C33 -> 0.0
B36: конец года
C37: всего | D37: норма | E37: ниже нормы | F37: низкий
B38: количество детей | C38: =COUNTA(B4:B27) -> 3 | D38: =COUNTIF(R5:R28,">=4") -> 0 | E38: =COUNTIFS(R5:R28,"<3,9",R5:R28,">=3") -> 0 | F38: =COUNTIFS(R5:R28,"<2",R5:R28,">0") -> 0
B39: % | C39: 100 | D39: =D38*C39/C38 -> 0.0 | E39: =E38*C39/C38 -> 0.0 | F39: =F38*C39/C38 -> 0.0

Sheet ИТОГ ФР
A1: Обобщение результатов педагогической диагностики по направлениям
C2: ОО «Физическое развитие»
B4: ОГЛАВЛЕНИЕ | C4: Основная гимнастика; подвижные и спортивные игры, спортивные упражнения | D4: Формирование основ здорового образа жизни | E4: Средний балл/уровень
C5: 1 | D5: 2 | E5: ср.ур.
B6: начало | C6: ='ФР-1'!AI31 -> 0.00 | D6: ='ФР-2'!$Q$29 -> 0.00 | E6: =(C6+D6)/2 -> 0.00
B7: конец | C7: ='ФР-1'!AJ31 -> 0.00 | D7: ='ФР-2'!$R$29 -> 0.00 | E7: =(C7+D7)/2 -> 0.00
A26: ВЫВОДЫ:
A27: Начало учебного года:
A35: Конец учебного года:

Sheet ИТОГОВАЯ ПО ОО
B1: Обобщение результатов педагогической диагностики по всем образовательным областям
B2: на 202__/2___ учебный год
B4: ОГЛАВЛЕНИЕ | C4: Социально-­коммуникативное развитие | D4: Познавательное развитие | E4: Речевое развитие | F4: Художественно­эстетическое развитие | G4: Физическое развитие | H4: Средний балл/уровень
C5: СК | D5: ПР | E5: РР | F5: ХЭР | G5: ФР | H5: ср.ур.
B6: начало | C6: ='ИТОГ СК'!G5 -> 0.78 | D6: ='ИТОГ ПР'!F5 -> 0.31 | E6: ='ИТОГ РР'!G6 -> 0.00 | F6: ='ИТОГ ХЭ'!H6 -> 0.00 | G6: ='ИТОГ ФР'!$E$6 -> 0.00 | H6: =(C6+D6+E6+F6+G6)/5 -> 0.22
B7: конец | C7: ='ИТОГ СК'!G6 -> 1.08 | D7: ='ИТОГ ПР'!F6 -> 0.43 | E7: ='ИТОГ РР'!G7 -> 0.00 | F7: ='ИТОГ ХЭ'!H7 -> 0.00 | G7: ='ИТОГ ФР'!$E$7 -> 0.00 | H7: =(C7+D7+E7+F7+G7)/5 -> 0.30
B28: Основные выводы по результатам педагогической диагностики
A30: Педагогический процесс организован на ___________________________ уровне.
A31: Следует обратить внимание на трудности реализации образовательной(-ых) области(-ей) «_________ развитие» в следующих аспектах:
A32: 1.
A36: 2.
A40: 3.
A44: В индивидуальной помощи нуждаются следующие дети:
A45: 1. «Речевое развитие»:
A53: 2. «Познавательное развитие»:
A64: 3. «Социально-коммуникативное развитие»:
A75: 4. «Художественно-эстетическое развитие»:
A86: 5. «Физическое развитие»:
